{"text_format":"1","workbook":"xlsx","n_sheets":3,"sheets":["Leas","Calendar","data"],"not_rendered":{"charts":0,"images":0,"macros":1,"external_links":0,"defined_names":8,"comments":2,"pivot_tables":0},"unopened":[],"bounds":{"document_bytes":16777216,"sheet_cells":100000,"rows_first":2000,"rows_last":500,"rows_between":2000,"halvings":0,"cell_chars":16384,"cell_head_chars":4096},"cells_cut":0,"cells_raw":0,"read":"whole","date_system":"1900"}

{"sheet":"Leas","index":0,"n_rows":0,"n_cols":0,"rows_kept":0,"cut":false,"hidden":true,"merged":[]}

{"sheet":"Calendar","index":1,"n_rows":380,"n_cols":35,"rows_kept":380,"cut":false,"hidden":false,"merged":[[33,1,33,7],[15,1,15,7],[24,19,24,25],[24,10,24,16],[33,19,33,25],[15,19,15,25],[15,10,15,16],[24,1,24,7],[33,10,33,16],[2,19,2,25],[5,16,5,17],[6,16,6,17],[7,16,7,17],[12,2,12,26],[10,19,10,25],[8,7,8,10],[62,1,62,7],[42,1,42,7],[42,10,42,16],[55,21,55,25],[56,21,56,25],[54,11,54,16],[57,21,57,25],[56,11,56,16],[55,11,55,16],[61,1,61,26],[58,21,58,25],[51,22,51,23],[42,19,42,25],[58,11,58,16],[57,11,57,16]]}
[null,null,null,null,null,null,"FY 2026 Private School Calendar",null,null,null,null,null,null,null,null,null,null,null,null,null,null,null,null,null,null,null,{"$f":"IF(Q8=\"Summer\",\"\",IF(AI13<>W52,\"Date Enter Error\",\"\"))","v":""}]
[null,"SAVE TO YOUR HARD DRIVE FIRST, DO NOT WORK ON THE WEB! "]
[1,"Program Information: (Select your program code from the dropdown)",null,null,null,null,null,null,null,null,null,null,null,null,null,null,null,null,null,"June 2025"]
[null,null,null,null,null,null,null,null,1,null,null,null,null,null,null,null,null,null,null,"S","M","T","W","T","F","S"]
[null,null,null,null,null,null,null,null,null,null,null,null,null,null,null,null,null,null,null,1,2,3,4,5,6,7,"June 2025"]
[null,"Program Code:",null,null,null,null,null,null,null,null,null,null,"Annual Rate: ",null,null,null,{"$f":"IF($I$6=\"\",\"\",VLOOKUP($I$6,rates,5))","v":""},null,null,8,9,10,11,12,13,14,"Total Days"]
[null,"Private School Name:",null,null,null,null,null,{"$f":"IF($I$6=\"\",\"\",VLOOKUP($I$6,rates,3))","v":""},null,null,null,null,"Daily Rate:",null,null,null,{"$f":"IF($I$6=\"\",\"\",VLOOKUP($I$6,rates,6))","v":""},null,null,15,16,17,18,19,20,21,"IN Session"]
[null,"Program Name:",null,null,null,null,null,{"$f":"IF($I$6=\"\",\"\",VLOOKUP($I$6,rates,4))","v":""},null,null,null,null,"Program Type:",null,null,null,{"$f":"IF($I$6=\"\",\"\",VLOOKUP($I$6,rates,2))","v":""},null,null,22,23,24,25,26,27,28,{"$f":"IF(AND(I6<>\"\",Q8=\"Summer\"),COUNTA(T5:Z10),0)","v":0}]
[null,"OSD Approved Total Days:",null,null,null,null,null,{"$f":"IF($I$6=\"\",\"\",IF(VLOOKUP($I$6,rates,7,FALSE)=\"\",\"No Calendar\",VLOOKUP($I$6,rates,7,FALSE)))","v":""},null,null,null,null,null,null,null,null,null,null,null,29,30]
[null,null,null,null,null,null,null,null,null," "]
[2,"Calendar Information:",null,null,null,null,null,null,null,null,null,null,null,null,null,null,null,null,null,"Note: For summer programs operating in June 2025 - Delete the dates school is NOT open."]
[null,"A. ","If program operates 365 days, complete Other Information below and proceed to saving the file instructions.",null,null,null,null,null,null,null,null,null,null,null,null,null,null,null,null,null,null,null,null,null,null,null,null,null,null,null,null,null,null,null,{"$f":"IF(W52=AI13,\"\",\"Not Match\")","v":""}]
[null,"B. ","Programs operating less than 365 days, delete dates school is not in session. Please use DELETE button rather than space bar to remove dates. Complete Other Information and proceed to saving the file instructions below.  (ONLY for those programs operating summer programs starting in June 2025 see \"Note\" above)",null,null,null,null,null,null,null,null,null,null,null,null,null,null,null,null,null,null,null,null,null,null,null,null,null,null,null,null,null,null,"Total Days:",{"$f":"SUM(AI16:AJ381)","v":365}]
[]
[null,null,null,null,null,null,null,null,null,null,null,null,null,null,null,null,null,null,null,null,null,null,null,null,null,null,null,null,null,null,null,"Col","Row",{"$f":"I6","v":0}]
[null,"July 2025",null,null,null,null,null,null,null,null,"August 2025",null,null,null,null,null,null,null,null,"September 2025",null,null,null,null,null,null,null,null,null,null,"2025-07-01","D",18,{"$f":"IF(INDIRECT(AF16&AG16)=\"\",\"\",AE16)","v":"2025-07-01"},{"$f":"IF(AH16=\"\",0,1)","v":1}]
[null,"S","M","T","W","T","F","S",null,null,"S","M","T","W","T","F","S",null,null,"S","M","T","W","T","F","S",null,null,null,null,"2025-07-02","E",18,"2025-07-02",1]
[null,null,null,1,2,3,4,5,null,null,null,null,null,null,null,1,2,null,null,null,1,2,3,4,5,6,null,null,null,null,"2025-07-03","F",18,"2025-07-03",1]
[null,6,7,8,9,10,11,12,"July 2025",null,3,4,5,6,7,8,9,"Aug 2025",null,7,8,9,10,11,12,13,"Sept 2025",null,null,null,"2025-07-04","G",18,"2025-07-04",1]
[null,13,14,15,16,17,18,19,"Total Days",null,10,11,12,13,14,15,16,"Total Days",null,14,15,16,17,18,19,20,"Total Days",null,null,null,"2025-07-05","H",18,"2025-07-05",1]
[null,20,21,22,23,24,25,26,"in Session",null,17,18,19,20,21,22,23,"in Session",null,21,22,23,24,25,26,27,"in Session",null,null,null,"2025-07-06","B",19,"2025-07-06",1]
[null,27,28,29,30,31,null,null,{"$f":"COUNT(B18:H23)","v":31},null,24,25,26,27,28,29,30,{"$f":"COUNT(K18:Q23)","v":31},null,28,29,30,null,null,null,null,{"$f":"COUNT(T18:Z23)","v":30},null,null,null,"2025-07-07","C",19,"2025-07-07",1]
[null,null,null,null,null,null,null,null,null,null,31,null,null,null,null,null,null,null,null,null,null,null,null,null,null,null,null,null,null,null,"2025-07-08","D",19,"2025-07-08",1]
[null,null,null,null,null,null,null,null,null,null,null,null,null,null,null,null,null,null,null,null,null,null,null,null,null,null,null,null,null,null,"2025-07-09","E",19,"2025-07-09",1]
[null,"October 2025",null,null,null,null,null,null,null,null,"November 2025",null,null,null,null,null,null,null,null,"December 2025",null,null,null,null,null,null,null,null,null,null,"2025-07-10","F",19,"2025-07-10",1]
[null,"S","M","T","W","T","F","S",null,null,"S","M","T","W","T","F","S",null,null,"S","M","T","W","T","F","S",null,null,null,null,"2025-07-11","G",19,"2025-07-11",1]
[null,null,null,null,1,2,3,4,null,null,null,null,null,null,null,null,1,null,null,null,1,2,3,4,5,6,null,null,null,null,"2025-07-12","H",19,"2025-07-12",1]
[null,5,6,7,8,9,10,11,"Oct 2025",null,2,3,4,5,6,7,8,"Nov 2025",null,7,8,9,10,11,12,13,"Dec 2025",null,null,null,"2025-07-13","B",20,"2025-07-13",1]
[null,12,13,14,15,16,17,18,"Total Days",null,9,10,11,12,13,14,15,"Total Days",null,14,15,16,17,18,19,20,"Total Days",null,null,null,"2025-07-14","C",20,"2025-07-14",1]
[null,19,20,21,22,23,24,25,"in Session",null,16,17,18,19,20,21,22,"in Session",null,21,22,23,24,25,26,27,"in Session",null,null,null,"2025-07-15","D",20,"2025-07-15",1]
[null,26,27,28,29,30,31,null,{"$f":"COUNT(B27:H32)","v":31},null,23,24,25,26,27,28,29,{"$f":"COUNT(K27:Q32)","v":30},null,28,29,30,31,null,null,null,{"$f":"COUNT(T27:Z32)","v":31},null,null,null,"2025-07-16","E",20,"2025-07-16",1]
[null,null,null,null,null,null,null,null,null,null,30,null,null,null,null,null,null,null,null,null,null,null,null,null,null,null,null,null,null,null,"2025-07-17","F",20,"2025-07-17",1]
[null,null,null,null,null,null,null,null,null,null,null,null,null,null,null,null,null,null,null,null,null,null,null,null,null,null,null,null,null,null,"2025-07-18","G",20,"2025-07-18",1]
[null,"January 2026",null,null,null,null,null,null,null,null,"February 2026",null,null,null,null,null,null,null,null,"March 2026",null,null,null,null,null,null,null,null,null,null,"2025-07-19","H",20,"2025-07-19",1]
[null,"S","M","T","W","T","F","S",null,null,"S","M","T","W","T","F","S",null,null,"S","M","T","W","T","F","S",null,null,null,null,"2025-07-20","B",21,"2025-07-20",1]
[null,null,null,null,null,1,2,3,null,null,1,2,3,4,5,6,7,null,null,1,2,3,4,5,6,7,null,null,null,null,"2025-07-21","C",21,"2025-07-21",1]
[null,4,5,6,7,8,9,10,"Jan 2026",null,8,9,10,11,12,13,14,"Feb 2026",null,8,9,10,11,12,13,14,"Mar 2026",null,null,null,"2025-07-22","D",21,"2025-07-22",1]
[null,11,12,13,14,15,16,17,"Total Days",null,15,16,17,18,19,20,21,"Total Days",null,15,16,17,18,19,20,21,"Total Days",null,null,null,"2025-07-23","E",21,"2025-07-23",1]
[null,18,19,20,21,22,23,24,"in Session",null,22,23,24,25,26,27,28,"in Session",null,22,23,24,25,26,27,28,"in Session",null,null,null,"2025-07-24","F",21,"2025-07-24",1]
[null,25,26,27,28,29,30,31,{"$f":"COUNT(B36:H41)","v":31},null,null,null,null,null,null,null,null,{"$f":"COUNT(K36:Q41)","v":28},null,29,30,31,null,null,null,null,{"$f":"COUNT(T36:Z41)","v":31},null,null,null,"2025-07-25","G",21,"2025-07-25",1]
[null,null,null,null,null,null,null,null,null,null,null,null,null,null,null,null,null,null,null,null,null,null,null,null,null,null,null,null,null,null,"2025-07-26","H",21,"2025-07-26",1]
[null,null,null,null,null,null,null,null,null,null,null,null,null,null,null,null,null,null,null,null,null,null,null,null,null,null,null,null,null,null,"2025-07-27","B",22,"2025-07-27",1]
[null,"April 2026",null,null,null,null,null,null,null,null,"May 2026",null,null,null,null,null,null,null,null,"June 2026",null,null,null,null,null,null,null,null,null,null,"2025-07-28","C",22,"2025-07-28",1]
[null,"S","M","T","W","T","F","S",null,null,"S","M","T","W","T","F","S",null,null,"S","M","T","W","T","F","S",null,null,null,null,"2025-07-29","D",22,"2025-07-29",1]
[null,null,null,null,1,2,3,4,null,null,null,null,null,null,null,1,2,null,null,null,1,2,3,4,5,6,null,null,null,null,"2025-07-30","E",22,"2025-07-30",1]
[null,5,6,7,8,9,10,11,"April 2026",null,3,4,5,6,7,8,9,"May 2026",null,7,8,9,10,11,12,13,"June 2026",null,null,null,"2025-07-31","F",22,"2025-07-31",1]
[null,12,13,14,15,16,17,18,"Total Days",null,10,11,12,13,14,15,16,"Total Days",null,14,15,16,17,18,19,20,"Total Days",null,null,null,"2025-08-01","P",18,"2025-08-01",1]
[null,19,20,21,22,23,24,25,"in Session",null,17,18,19,20,21,22,23,"in Session",null,21,22,23,24,25,26,27,"In Session",null,null,null,"2025-08-02","Q",18,"2025-08-02",1]
[null,26,27,28,29,30,null,null,{"$f":"COUNT(B45:H50)","v":30},null,24,25,26,27,28,29,30,{"$f":"COUNT(K45:Q50)","v":31},null,28,29,30,null,null,null,null,{"$f":"COUNT(T45:Z50)","v":30},null,null,null,"2025-08-03","K",19,"2025-08-03",1]
[null,null,null,null,null,null,null,null,null,null,31,null,null,null,null,null,null,null,null,null,null,null,null,null,null,null,null,null,null,null,"2025-08-04","L",19,"2025-08-04",1]
[null,null,null,null,null,null,null,null,null,null,null,null,null,null,null,null,null,null,null,null,null,null,null,null,null,null,null,"  ",null,null,"2025-08-05","M",19,"2025-08-05",1]
[null,{"$f":"AA8+I22+R22+AA22+I31+R31+AA31+I40+R40+AA40+I49+R49+AA49","v":365},null,null,null,null,null,null,"Grand Total of Days is in Session for the Entire Fiscal Year: ",null,null,null,null,null,null,null,null,null,null,null,null,null,{"$f":"B52","v":365},null,null,null,null,null,null,null,"2025-08-06","N",19,"2025-08-06",1]
[null,null,null,null,null,null,null,null,{"$f":"IF(B52>H9,\"Total open days > than appproved open days\",IF(H9=\"No Calendar\",\"No Calendar, please submit Calendar first.\",IF(H9=\"\",\"\",\"\")))","v":""},null,null,null,null,null,null,null,null,null,null,null,null,null,null,null,null,null,null,null,null,null,"2025-08-07","O",19,"2025-08-07",1]
[3,"Other Information",null,null,null,null,null,null,null,null,null,null,null,null,null,null,null,null,null,null,null,null,null,null,null,null,null,null,null,null,"2025-08-08","P",19,"2025-08-08",1]
[null,null,null,null,null,null,null,null,null,null,null,null,null,null,null,null,null,null,null,null,null,null,null,null,null,null,null,null,null,null,"2025-08-09","Q",19,"2025-08-09",1]
[null,null,"Printed Name of Person Completing Form:",null,null,null,null,null,null,null,null,null,null,null,null,null,null,null,"Date:",null,null,null,null,null,null,null,null,null,null,null,"2025-08-10","K",20,"2025-08-10",1]
[null,null,"Title of Person Completing Form:",null,null,null,null,null,null,null,null,null,null,null,null,null,null,null,"Phone#:",null,null,null,null,null,null,null,null,null,null,null,"2025-08-11","L",20,"2025-08-11",1]
[null,null,"Contact person if not same as person above:",null,null,null,null,null,null,null,null,null,null,null,null,null,null,null,"Fax #:",null,null,null,null,null,null,null,null,null,null,null,"2025-08-12","M",20,"2025-08-12",1]
[null,null,"E-Mail:",null,null,null,null,null,null,null,null,null,null,null,null,null,null,null,null,null,null,null,null,null,null,null,null,null,null,null,"2025-08-13","N",20,"2025-08-13",1]
[null,null,null,null,null,null,null,null,null,null,null,null,null,null,null,null,null,null,null,null,null,null,null,null,null,null,null,null,null,null,"2025-08-14","O",20,"2025-08-14",1]
[4,"Saving the file",null,null,null,null,null,null,null,null,null,null,null,null,null,null,null,null,null,null,null,null,null,null,null,null,null,null,null,null,"2025-08-15","P",20,"2025-08-15",1]
[null,"Once you have entered the dates that are open/closed, click the \"Save Calendar\" button located in the upper right hand corner of this sheet. The file will be automatically saved as \"26CBxxxxx.xls\" (xxxxx represents the program code). Please email a copy of this file to circuitbreaker@mass.gov.",null,null,null,null,null,null,null,null,null,null,null,null,null,null,null,null,null,null,null,null,null,null,null,null,null,null,null,null,"2025-08-16","Q",20,"2025-08-16",1]
[null," ",null,null,null,null,null,null,null,null,null,null,null,null,null,null,null,null,null,null,null,null,null,null,null,null,null,null,null,null,"2025-08-17","K",21,"2025-08-17",1]
[null,null,null,null,null,null,null,null,null,null,null,null,null,null,null,null,null,null,null,null,null,null,null,null,null,null,null,null,null,null,"2025-08-18","L",21,"2025-08-18",1]
[null,null,null,null,null,null,null,null,null,null,null,null,null,null,null,null,null,null,null,null,null,null,null,null,null,null,null,null,null,null,"2025-08-19","M",21,"2025-08-19",1]
[null,null,null,null,null,null,null,null,null,null,null,null,null,null,null,null,null,null,null,null,null,null,null,null,null,null,null,null,null,null,"2025-08-20","N",21,"2025-08-20",1]
[null,null,null,null,null,null,null,null,null,null,null,null,null,null,null,null,null,null,null,null,null,null,null,null,null,null,null,null,null,null,"2025-08-21","O",21,"2025-08-21",1]
[null,null,null,null,null,null,null,null,null,null,null,null,null,null,null,null,null,null,null,null,null,null,null,null,null,null,null,null,null,null,"2025-08-22","P",21,"2025-08-22",1]
[null,null,null,null,null,null,null,null,null,null,null,null,null,null,null,null,null,null,null,null,null,null,null,null,null,null,null,null,null,null,"2025-08-23","Q",21,"2025-08-23",1]
[null,null,null,null,null,null,null,null,null,null,null,null,null,null,null,null,null,null,null,null,null,null,null,null,null,null,null,null,null,null,"2025-08-24","K",22,"2025-08-24",1]
[null,null,null,null,null,null,null,null,null,null,null,null,null,null,null,null,null,null,null,null,null,null,null,null,null,null,null,null,null,null,"2025-08-25","L",22,"2025-08-25",1]
[null,null,null,null,null,null,null,null,null,null,null,null,null,null,null,null,null,null,null,null,null,null,null,null,null,null,null,null,null,null,"2025-08-26","M",22,"2025-08-26",1]
[null,null,null,null,null,null,null,null,null,null,null,null,null,null,null,null,null,null,null,null,null,null,null,null,null,null,null,null,null,null,"2025-08-27","N",22,"2025-08-27",1]
[null,null,null,null,null,null,null,null,null,null,null,null,null,null,null,null,null,null,null,null,null,null,null,null,null,null,null,null,null,null,"2025-08-28","O",22,"2025-08-28",1]
[null,null,null,null,null,null,null,null,null,null,null,null,null,null,null,null,null,null,null,null,null,null,null,null,null,null,null,null,null,null,"2025-08-29","P",22,"2025-08-29",1]
[null,null,null,null,null,null,null,null,null,null,null,null,null,null,null,null,null,null,null,null,null,null,null,null,null,null,null,null,null,null,"2025-08-30","Q",22,"2025-08-30",1]
[null,null,null,null,null,null,null,null,null,null,null,null,null,null,null,null,null,null,null,null,null,null,null,null,null,null,null,null,null,null,"2025-08-31","K",23,"2025-08-31",1]
[null,null,null,null,null,null,null,null,null,null,null,null,null,null,null,null,null,null,null,null,null,null,null,null,null,null,null,null,null,null,"2025-09-01","U",18,"2025-09-01",1]
[null,null,null,null,null,null,null,null,null,null,null,null,null,null,null,null,null,null,null,null,null,null,null,null,null,null,null,null,null,null,"2025-09-02","V",18,"2025-09-02",1]
[null,null,null,null,null,null,null,null,null,null,null,null,null,null,null,null,null,null,null,null,null,null,null,null,null,null,null,null,null,null,"2025-09-03","W",18,{"$f":"IF(INDIRECT(AF80&AG80)=\"\",\"\",AE80)","v":"2025-09-03"},{"$f":"IF(AH80=\"\",0,1)","v":1}]
[null,null,null,null,null,null,null,null,null,null,null,null,null,null,null,null,null,null,null,null,null,null,null,null,null,null,null,null,null,null,"2025-09-04","X",18,"2025-09-04",1]
[null,null,null,null,null,null,null,null,null,null,null,null,null,null,null,null,null,null,null,null,null,null,null,null,null,null,null,null,null,null,"2025-09-05","Y",18,"2025-09-05",1]
[null,null,null,null,null,null,null,null,null,null,null,null,null,null,null,null,null,null,null,null,null,null,null,null,null,null,null,null,null,null,"2025-09-06","Z",18,"2025-09-06",1]
[null,null,null,null,null,null,null,null,null,null,null,null,null,null,null,null,null,null,null,null,null,null,null,null,null,null,null,null,null,null,"2025-09-07","T",19,"2025-09-07",1]
[null,null,null,null,null,null,null,null,null,null,null,null,null,null,null,null,null,null,null,null,null,null,null,null,null,null,null,null,null,null,"2025-09-08","U",19,"2025-09-08",1]
[null,null,null,null,null,null,null,null,null,null,null,null,null,null,null,null,null,null,null,null,null,null,null,null,null,null,null,null,null,null,"2025-09-09","V",19,"2025-09-09",1]
[null,null,null,null,null,null,null,null,null,null,null,null,null,null,null,null,null,null,null,null,null,null,null,null,null,null,null,null,null,null,"2025-09-10","W",19,"2025-09-10",1]
[null,null,null,null,null,null,null,null,null,null,null,null,null,null,null,null,null,null,null,null,null,null,null,null,null,null,null,null,null,null,"2025-09-11","X",19,"2025-09-11",1]
[null,null,null,null,null,null,null,null,null,null,null,null,null,null,null,null,null,null,null,null,null,null,null,null,null,null,null,null,null,null,"2025-09-12","Y",19,"2025-09-12",1]
[null,null,null,null,null,null,null,null,null,null,null,null,null,null,null,null,null,null,null,null,null,null,null,null,null,null,null,null,null,null,"2025-09-13","Z",19,"2025-09-13",1]
[null,null,null,null,null,null,null,null,null,null,null,null,null,null,null,null,null,null,null,null,null,null,null,null,null,null,null,null,null,null,"2025-09-14","T",20,"2025-09-14",1]
[null,null,null,null,null,null,null,null,null,null,null,null,null,null,null,null,null,null,null,null,null,null,null,null,null,null,null,null,null,null,"2025-09-15","U",20,"2025-09-15",1]
[null,null,null,null,null,null,null,null,null,null,null,null,null,null,null,null,null,null,null,null,null,null,null,null,null,null,null,null,null,null,"2025-09-16","V",20,"2025-09-16",1]
[null,null,null,null,null,null,null,null,null,null,null,null,null,null,null,null,null,null,null,null,null,null,null,null,null,null,null,null,null,null,"2025-09-17","W",20,"2025-09-17",1]
[null,null,null,null,null,null,null,null,null,null,null,null,null,null,null,null,null,null,null,null,null,null,null,null,null,null,null,null,null,null,"2025-09-18","X",20,"2025-09-18",1]
[null,null,null,null,null,null,null,null,null,null,null,null,null,null,null,null,null,null,null,null,null,null,null,null,null,null,null,null,null,null,"2025-09-19","Y",20,"2025-09-19",1]
[null,null,null,null,null,null,null,null,null,null,null,null,null,null,null,null,null,null,null,null,null,null,null,null,null,null,null,null,null,null,"2025-09-20","Z",20,"2025-09-20",1]
[null,null,null,null,null,null,null,null,null,null,null,null,null,null,null,null,null,null,null,null,null,null,null,null,null,null,null,null,null,null,"2025-09-21","T",21,"2025-09-21",1]
[null,null,null,null,null,null,null,null,null,null,null,null,null,null,null,null,null,null,null,null,null,null,null,null,null,null,null,null,null,null,"2025-09-22","U",21,"2025-09-22",1]
[null,null,null,null,null,null,null,null,null,null,null,null,null,null,null,null,null,null,null,null,null,null,null,null,null,null,null,null,null,null,"2025-09-23","V",21,"2025-09-23",1]
[null,null,null,null,null,null,null,null,null,null,null,null,null,null,null,null,null,null,null,null,null,null,null,null,null,null,null,null,null,null,"2025-09-24","W",21,"2025-09-24",1]
[null,null,null,null,null,null,null,null,null,null,null,null,null,null,null,null,null,null,null,null,null,null,null,null,null,null,null,null,null,null,"2025-09-25","X",21,"2025-09-25",1]
[null,null,null,null,null,null,null,null,null,null,null,null,null,null,null,null,null,null,null,null,null,null,null,null,null,null,null,null,null,null,"2025-09-26","Y",21,"2025-09-26",1]
[null,null,null,null,null,null,null,null,null,null,null,null,null,null,null,null,null,null,null,null,null,null,null,null,null,null,null,null,null,null,"2025-09-27","Z",21,"2025-09-27",1]
[null,null,null,null,null,null,null,null,null,null,null,null,null,null,null,null,null,null,null,null,null,null,null,null,null,null,null,null,null,null,"2025-09-28","T",22,"2025-09-28",1]
[null,null,null,null,null,null,null,null,null,null,null,null,null,null,null,null,null,null,null,null,null,null,null,null,null,null,null,null,null,null,"2025-09-29","U",22,"2025-09-29",1]
[null,null,null,null,null,null,null,null,null,null,null,null,null,null,null,null,null,null,null,null,null,null,null,null,null,null,null,null,null,null,"2025-09-30","V",22,"2025-09-30",1]
[null,null,null,null,null,null,null,null,null,null,null,null,null,null,null,null,null,null,null,null,null,null,null,null,null,null,null,null,null,null,"2025-10-01","E",27,"2025-10-01",1]
[null,null,null,null,null,null,null,null,null,null,null,null,null,null,null,null,null,null,null,null,null,null,null,null,null,null,null,null,null,null,"2025-10-02","F",27,"2025-10-02",1]
[null,null,null,null,null,null,null,null,null,null,null,null,null,null,null,null,null,null,null,null,null,null,null,null,null,null,null,null,null,null,"2025-10-03","G",27,"2025-10-03",1]
[null,null,null,null,null,null,null,null,null,null,null,null,null,null,null,null,null,null,null,null,null,null,null,null,null,null,null,null,null,null,"2025-10-04","H",27,"2025-10-04",1]
[null,null,null,null,null,null,null,null,null,null,null,null,null,null,null,null,null,null,null,null,null,null,null,null,null,null,null,null,null,null,"2025-10-05","B",28,"2025-10-05",1]
[null,null,null,null,null,null,null,null,null,null,null,null,null,null,null,null,null,null,null,null,null,null,null,null,null,null,null,null,null,null,"2025-10-06","C",28,"2025-10-06",1]
[null,null,null,null,null,null,null,null,null,null,null,null,null,null,null,null,null,null,null,null,null,null,null,null,null,null,null,null,null,null,"2025-10-07","D",28,"2025-10-07",1]
[null,null,null,null,null,null,null,null,null,null,null,null,null,null,null,null,null,null,null,null,null,null,null,null,null,null,null,null,null,null,"2025-10-08","E",28,"2025-10-08",1]
[null,null,null,null,null,null,null,null,null,null,null,null,null,null,null,null,null,null,null,null,null,null,null,null,null,null,null,null,null,null,"2025-10-09","F",28,"2025-10-09",1]
[null,null,null,null,null,null,null,null,null,null,null,null,null,null,null,null,null,null,null,null,null,null,null,null,null,null,null,null,null,null,"2025-10-10","G",28,"2025-10-10",1]
[null,null,null,null,null,null,null,null,null,null,null,null,null,null,null,null,null,null,null,null,null,null,null,null,null,null,null,null,null,null,"2025-10-11","H",28,"2025-10-11",1]
[null,null,null,null,null,null,null,null,null,null,null,null,null,null,null,null,null,null,null,null,null,null,null,null,null,null,null,null,null,null,"2025-10-12","B",29,"2025-10-12",1]
[null,null,null,null,null,null,null,null,null,null,null,null,null,null,null,null,null,null,null,null,null,null,null,null,null,null,null,null,null,null,"2025-10-13","C",29,"2025-10-13",1]
[null,null,null,null,null,null,null,null,null,null,null,null,null,null,null,null,null,null,null,null,null,null,null,null,null,null,null,null,null,null,"2025-10-14","D",29,"2025-10-14",1]
[null,null,null,null,null,null,null,null,null,null,null,null,null,null,null,null,null,null,null,null,null,null,null,null,null,null,null,null,null,null,"2025-10-15","E",29,"2025-10-15",1]
[null,null,null,null,null,null,null,null,null,null,null,null,null,null,null,null,null,null,null,null,null,null,null,null,null,null,null,null,null,null,"2025-10-16","F",29,"2025-10-16",1]
[null,null,null,null,null,null,null,null,null,null,null,null,null,null,null,null,null,null,null,null,null,null,null,null,null,null,null,null,null,null,"2025-10-17","G",29,"2025-10-17",1]
[null,null,null,null,null,null,null,null,null,null,null,null,null,null,null,null,null,null,null,null,null,null,null,null,null,null,null,null,null,null,"2025-10-18","H",29,"2025-10-18",1]
[null,null,null,null,null,null,null,null,null,null,null,null,null,null,null,null,null,null,null,null,null,null,null,null,null,null,null,null,null,null,"2025-10-19","B",30,"2025-10-19",1]
[null,null,null,null,null,null,null,null,null,null,null,null,null,null,null,null,null,null,null,null,null,null,null,null,null,null,null,null,null,null,"2025-10-20","C",30,"2025-10-20",1]
[null,null,null,null,null,null,null,null,null,null,null,null,null,null,null,null,null,null,null,null,null,null,null,null,null,null,null,null,null,null,"2025-10-21","D",30,"2025-10-21",1]
[null,null,null,null,null,null,null,null,null,null,null,null,null,null,null,null,null,null,null,null,null,null,null,null,null,null,null,null,null,null,"2025-10-22","E",30,"2025-10-22",1]
[null,null,null,null,null,null,null,null,null,null,null,null,null,null,null,null,null,null,null,null,null,null,null,null,null,null,null,null,null,null,"2025-10-23","F",30,"2025-10-23",1]
[null,null,null,null,null,null,null,null,null,null,null,null,null,null,null,null,null,null,null,null,null,null,null,null,null,null,null,null,null,null,"2025-10-24","G",30,"2025-10-24",1]
[null,null,null,null,null,null,null,null,null,null,null,null,null,null,null,null,null,null,null,null,null,null,null,null,null,null,null,null,null,null,"2025-10-25","H",30,"2025-10-25",1]
[null,null,null,null,null,null,null,null,null,null,null,null,null,null,null,null,null,null,null,null,null,null,null,null,null,null,null,null,null,null,"2025-10-26","B",31,"2025-10-26",1]
[null,null,null,null,null,null,null,null,null,null,null,null,null,null,null,null,null,null,null,null,null,null,null,null,null,null,null,null,null,null,"2025-10-27","C",31,"2025-10-27",1]
[null,null,null,null,null,null,null,null,null,null,null,null,null,null,null,null,null,null,null,null,null,null,null,null,null,null,null,null,null,null,"2025-10-28","D",31,"2025-10-28",1]
[null,null,null,null,null,null,null,null,null,null,null,null,null,null,null,null,null,null,null,null,null,null,null,null,null,null,null,null,null,null,"2025-10-29","E",31,"2025-10-29",1]
[null,null,null,null,null,null,null,null,null,null,null,null,null,null,null,null,null,null,null,null,null,null,null,null,null,null,null,null,null,null,"2025-10-30","F",31,"2025-10-30",1]
[null,null,null,null,null,null,null,null,null,null,null,null,null,null,null,null,null,null,null,null,null,null,null,null,null,null,null,null,null,null,"2025-10-31","G",31,"2025-10-31",1]
[null,null,null,null,null,null,null,null,null,null,null,null,null,null,null,null,null,null,null,null,null,null,null,null,null,null,null,null,null,null,"2025-11-01","Q",27,"2025-11-01",1]
[null,null,null,null,null,null,null,null,null,null,null,null,null,null,null,null,null,null,null,null,null,null,null,null,null,null,null,null,null,null,"2025-11-02","K",28,"2025-11-02",1]
[null,null,null,null,null,null,null,null,null,null,null,null,null,null,null,null,null,null,null,null,null,null,null,null,null,null,null,null,null,null,"2025-11-03","L",28,"2025-11-03",1]
[null,null,null,null,null,null,null,null,null,null,null,null,null,null,null,null,null,null,null,null,null,null,null,null,null,null,null,null,null,null,"2025-11-04","M",28,"2025-11-04",1]
[null,null,null,null,null,null,null,null,null,null,null,null,null,null,null,null,null,null,null,null,null,null,null,null,null,null,null,null,null,null,"2025-11-05","N",28,"2025-11-05",1]
[null,null,null,null,null,null,null,null,null,null,null,null,null,null,null,null,null,null,null,null,null,null,null,null,null,null,null,null,null,null,"2025-11-06","O",28,{"$f":"IF(INDIRECT(AF144&AG144)=\"\",\"\",AE144)","v":"2025-11-06"},{"$f":"IF(AH144=\"\",0,1)","v":1}]
[null,null,null,null,null,null,null,null,null,null,null,null,null,null,null,null,null,null,null,null,null,null,null,null,null,null,null,null,null,null,"2025-11-07","P",28,"2025-11-07",1]
[null,null,null,null,null,null,null,null,null,null,null,null,null,null,null,null,null,null,null,null,null,null,null,null,null,null,null,null,null,null,"2025-11-08","Q",28,"2025-11-08",1]
[null,null,null,null,null,null,null,null,null,null,null,null,null,null,null,null,null,null,null,null,null,null,null,null,null,null,null,null,null,null,"2025-11-09","K",29,"2025-11-09",1]
[null,null,null,null,null,null,null,null,null,null,null,null,null,null,null,null,null,null,null,null,null,null,null,null,null,null,null,null,null,null,"2025-11-10","L",29,"2025-11-10",1]
[null,null,null,null,null,null,null,null,null,null,null,null,null,null,null,null,null,null,null,null,null,null,null,null,null,null,null,null,null,null,"2025-11-11","M",29,"2025-11-11",1]
[null,null,null,null,null,null,null,null,null,null,null,null,null,null,null,null,null,null,null,null,null,null,null,null,null,null,null,null,null,null,"2025-11-12","N",29,"2025-11-12",1]
[null,null,null,null,null,null,null,null,null,null,null,null,null,null,null,null,null,null,null,null,null,null,null,null,null,null,null,null,null,null,"2025-11-13","O",29,"2025-11-13",1]
[null,null,null,null,null,null,null,null,null,null,null,null,null,null,null,null,null,null,null,null,null,null,null,null,null,null,null,null,null,null,"2025-11-14","P",29,"2025-11-14",1]
[null,null,null,null,null,null,null,null,null,null,null,null,null,null,null,null,null,null,null,null,null,null,null,null,null,null,null,null,null,null,"2025-11-15","Q",29,"2025-11-15",1]
[null,null,null,null,null,null,null,null,null,null,null,null,null,null,null,null,null,null,null,null,null,null,null,null,null,null,null,null,null,null,"2025-11-16","K",30,"2025-11-16",1]
[null,null,null,null,null,null,null,null,null,null,null,null,null,null,null,null,null,null,null,null,null,null,null,null,null,null,null,null,null,null,"2025-11-17","L",30,"2025-11-17",1]
[null,null,null,null,null,null,null,null,null,null,null,null,null,null,null,null,null,null,null,null,null,null,null,null,null,null,null,null,null,null,"2025-11-18","M",30,"2025-11-18",1]
[null,null,null,null,null,null,null,null,null,null,null,null,null,null,null,null,null,null,null,null,null,null,null,null,null,null,null,null,null,null,"2025-11-19","N",30,"2025-11-19",1]
[null,null,null,null,null,null,null,null,null,null,null,null,null,null,null,null,null,null,null,null,null,null,null,null,null,null,null,null,null,null,"2025-11-20","O",30,"2025-11-20",1]
[null,null,null,null,null,null,null,null,null,null,null,null,null,null,null,null,null,null,null,null,null,null,null,null,null,null,null,null,null,null,"2025-11-21","P",30,"2025-11-21",1]
[null,null,null,null,null,null,null,null,null,null,null,null,null,null,null,null,null,null,null,null,null,null,null,null,null,null,null,null,null,null,"2025-11-22","Q",30,"2025-11-22",1]
[null,null,null,null,null,null,null,null,null,null,null,null,null,null,null,null,null,null,null,null,null,null,null,null,null,null,null,null,null,null,"2025-11-23","K",31,"2025-11-23",1]
[null,null,null,null,null,null,null,null,null,null,null,null,null,null,null,null,null,null,null,null,null,null,null,null,null,null,null,null,null,null,"2025-11-24","L",31,"2025-11-24",1]
[null,null,null,null,null,null,null,null,null,null,null,null,null,null,null,null,null,null,null,null,null,null,null,null,null,null,null,null,null,null,"2025-11-25","M",31,"2025-11-25",1]
[null,null,null,null,null,null,null,null,null,null,null,null,null,null,null,null,null,null,null,null,null,null,null,null,null,null,null,null,null,null,"2025-11-26","N",31,"2025-11-26",1]
[null,null,null,null,null,null,null,null,null,null,null,null,null,null,null,null,null,null,null,null,null,null,null,null,null,null,null,null,null,null,"2025-11-27","O",31,"2025-11-27",1]
[null,null,null,null,null,null,null,null,null,null,null,null,null,null,null,null,null,null,null,null,null,null,null,null,null,null,null,null,null,null,"2025-11-28","P",31,"2025-11-28",1]
[null,null,null,null,null,null,null,null,null,null,null,null,null,null,null,null,null,null,null,null,null,null,null,null,null,null,null,null,null,null,"2025-11-29","Q",31,"2025-11-29",1]
[null,null,null,null,null,null,null,null,null,null,null,null,null,null,null,null,null,null,null,null,null,null,null,null,null,null,null,null,null,null,"2025-11-30","K",32,"2025-11-30",1]
[null,null,null,null,null,null,null,null,null,null,null,null,null,null,null,null,null,null,null,null,null,null,null,null,null,null,null,null,null,null,"2025-12-01","U",27,"2025-12-01",1]
[null,null,null,null,null,null,null,null,null,null,null,null,null,null,null,null,null,null,null,null,null,null,null,null,null,null,null,null,null,null,"2025-12-02","V",27,"2025-12-02",1]
[null,null,null,null,null,null,null,null,null,null,null,null,null,null,null,null,null,null,null,null,null,null,null,null,null,null,null,null,null,null,"2025-12-03","W",27,"2025-12-03",1]
[null,null,null,null,null,null,null,null,null,null,null,null,null,null,null,null,null,null,null,null,null,null,null,null,null,null,null,null,null,null,"2025-12-04","X",27,"2025-12-04",1]
[null,null,null,null,null,null,null,null,null,null,null,null,null,null,null,null,null,null,null,null,null,null,null,null,null,null,null,null,null,null,"2025-12-05","Y",27,"2025-12-05",1]
[null,null,null,null,null,null,null,null,null,null,null,null,null,null,null,null,null,null,null,null,null,null,null,null,null,null,null,null,null,null,"2025-12-06","Z",27,"2025-12-06",1]
[null,null,null,null,null,null,null,null,null,null,null,null,null,null,null,null,null,null,null,null,null,null,null,null,null,null,null,null,null,null,"2025-12-07","T",28,"2025-12-07",1]
[null,null,null,null,null,null,null,null,null,null,null,null,null,null,null,null,null,null,null,null,null,null,null,null,null,null,null,null,null,null,"2025-12-08","U",28,"2025-12-08",1]
[null,null,null,null,null,null,null,null,null,null,null,null,null,null,null,null,null,null,null,null,null,null,null,null,null,null,null,null,null,null,"2025-12-09","V",28,"2025-12-09",1]
[null,null,null,null,null,null,null,null,null,null,null,null,null,null,null,null,null,null,null,null,null,null,null,null,null,null,null,null,null,null,"2025-12-10","W",28,"2025-12-10",1]
[null,null,null,null,null,null,null,null,null,null,null,null,null,null,null,null,null,null,null,null,null,null,null,null,null,null,null,null,null,null,"2025-12-11","X",28,"2025-12-11",1]
[null,null,null,null,null,null,null,null,null,null,null,null,null,null,null,null,null,null,null,null,null,null,null,null,null,null,null,null,null,null,"2025-12-12","Y",28,"2025-12-12",1]
[null,null,null,null,null,null,null,null,null,null,null,null,null,null,null,null,null,null,null,null,null,null,null,null,null,null,null,null,null,null,"2025-12-13","Z",28,"2025-12-13",1]
[null,null,null,null,null,null,null,null,null,null,null,null,null,null,null,null,null,null,null,null,null,null,null,null,null,null,null,null,null,null,"2025-12-14","T",29,"2025-12-14",1]
[null,null,null,null,null,null,null,null,null,null,null,null,null,null,null,null,null,null,null,null,null,null,null,null,null,null,null,null,null,null,"2025-12-15","U",29,"2025-12-15",1]
[null,null,null,null,null,null,null,null,null,null,null,null,null,null,null,null,null,null,null,null,null,null,null,null,null,null,null,null,null,null,"2025-12-16","V",29,"2025-12-16",1]
[null,null,null,null,null,null,null,null,null,null,null,null,null,null,null,null,null,null,null,null,null,null,null,null,null,null,null,null,null,null,"2025-12-17","W",29,"2025-12-17",1]
[null,null,null,null,null,null,null,null,null,null,null,null,null,null,null,null,null,null,null,null,null,null,null,null,null,null,null,null,null,null,"2025-12-18","X",29,"2025-12-18",1]
[null,null,null,null,null,null,null,null,null,null,null,null,null,null,null,null,null,null,null,null,null,null,null,null,null,null,null,null,null,null,"2025-12-19","Y",29,"2025-12-19",1]
[null,null,null,null,null,null,null,null,null,null,null,null,null,null,null,null,null,null,null,null,null,null,null,null,null,null,null,null,null,null,"2025-12-20","Z",29,"2025-12-20",1]
[null,null,null,null,null,null,null,null,null,null,null,null,null,null,null,null,null,null,null,null,null,null,null,null,null,null,null,null,null,null,"2025-12-21","T",30,"2025-12-21",1]
[null,null,null,null,null,null,null,null,null,null,null,null,null,null,null,null,null,null,null,null,null,null,null,null,null,null,null,null,null,null,"2025-12-22","U",30,"2025-12-22",1]
[null,null,null,null,null,null,null,null,null,null,null,null,null,null,null,null,null,null,null,null,null,null,null,null,null,null,null,null,null,null,"2025-12-23","V",30,"2025-12-23",1]
[null,null,null,null,null,null,null,null,null,null,null,null,null,null,null,null,null,null,null,null,null,null,null,null,null,null,null,null,null,null,"2025-12-24","W",30,"2025-12-24",1]
[null,null,null,null,null,null,null,null,null,null,null,null,null,null,null,null,null,null,null,null,null,null,null,null,null,null,null,null,null,null,"2025-12-25","X",30,"2025-12-25",1]
[null,null,null,null,null,null,null,null,null,null,null,null,null,null,null,null,null,null,null,null,null,null,null,null,null,null,null,null,null,null,"2025-12-26","Y",30,"2025-12-26",1]
[null,null,null,null,null,null,null,null,null,null,null,null,null,null,null,null,null,null,null,null,null,null,null,null,null,null,null,null,null,null,"2025-12-27","Z",30,"2025-12-27",1]
[null,null,null,null,null,null,null,null,null,null,null,null,null,null,null,null,null,null,null,null,null,null,null,null,null,null,null,null,null,null,"2025-12-28","T",31,"2025-12-28",1]
[null,null,null,null,null,null,null,null,null,null,null,null,null,null,null,null,null,null,null,null,null,null,null,null,null,null,null,null,null,null,"2025-12-29","U",31,"2025-12-29",1]
[null,null,null,null,null,null,null,null,null,null,null,null,null,null,null,null,null,null,null,null,null,null,null,null,null,null,null,null,null,null,"2025-12-30","V",31,"2025-12-30",1]
[null,null,null,null,null,null,null,null,null,null,null,null,null,null,null,null,null,null,null,null,null,null,null,null,null,null,null,null,null,null,"2025-12-31","W",31,"2025-12-31",1]
[null,null,null,null,null,null,null,null,null,null,null,null,null,null,null,null,null,null,null,null,null,null,null,null,null,null,null,null,null,null,"2026-01-01","F",36,"2026-01-01",1]
[null,null,null,null,null,null,null,null,null,null,null,null,null,null,null,null,null,null,null,null,null,null,null,null,null,null,null,null,null,null,"2026-01-02","G",36,"2026-01-02",1]
[null,null,null,null,null,null,null,null,null,null,null,null,null,null,null,null,null,null,null,null,null,null,null,null,null,null,null,null,null,null,"2026-01-03","H",36,"2026-01-03",1]
[null,null,null,null,null,null,null,null,null,null,null,null,null,null,null,null,null,null,null,null,null,null,null,null,null,null,null,null,null,null,"2026-01-04","B",37,"2026-01-04",1]
[null,null,null,null,null,null,null,null,null,null,null,null,null,null,null,null,null,null,null,null,null,null,null,null,null,null,null,null,null,null,"2026-01-05","C",37,"2026-01-05",1]
[null,null,null,null,null,null,null,null,null,null,null,null,null,null,null,null,null,null,null,null,null,null,null,null,null,null,null,null,null,null,"2026-01-06","D",37,"2026-01-06",1]
[null,null,null,null,null,null,null,null,null,null,null,null,null,null,null,null,null,null,null,null,null,null,null,null,null,null,null,null,null,null,"2026-01-07","E",37,"2026-01-07",1]
[null,null,null,null,null,null,null,null,null,null,null,null,null,null,null,null,null,null,null,null,null,null,null,null,null,null,null,null,null,null,"2026-01-08","F",37,"2026-01-08",1]
[null,null,null,null,null,null,null,null,null,null,null,null,null,null,null,null,null,null,null,null,null,null,null,null,null,null,null,null,null,null,"2026-01-09","G",37,{"$f":"IF(INDIRECT(AF208&AG208)=\"\",\"\",AE208)","v":"2026-01-09"},{"$f":"IF(AH208=\"\",0,1)","v":1}]
[null,null,null,null,null,null,null,null,null,null,null,null,null,null,null,null,null,null,null,null,null,null,null,null,null,null,null,null,null,null,"2026-01-10","H",37,"2026-01-10",1]
[null,null,null,null,null,null,null,null,null,null,null,null,null,null,null,null,null,null,null,null,null,null,null,null,null,null,null,null,null,null,"2026-01-11","B",38,"2026-01-11",1]
[null,null,null,null,null,null,null,null,null,null,null,null,null,null,null,null,null,null,null,null,null,null,null,null,null,null,null,null,null,null,"2026-01-12","C",38,"2026-01-12",1]
[null,null,null,null,null,null,null,null,null,null,null,null,null,null,null,null,null,null,null,null,null,null,null,null,null,null,null,null,null,null,"2026-01-13","D",38,"2026-01-13",1]
[null,null,null,null,null,null,null,null,null,null,null,null,null,null,null,null,null,null,null,null,null,null,null,null,null,null,null,null,null,null,"2026-01-14","E",38,"2026-01-14",1]
[null,null,null,null,null,null,null,null,null,null,null,null,null,null,null,null,null,null,null,null,null,null,null,null,null,null,null,null,null,null,"2026-01-15","F",38,"2026-01-15",1]
[null,null,null,null,null,null,null,null,null,null,null,null,null,null,null,null,null,null,null,null,null,null,null,null,null,null,null,null,null,null,"2026-01-16","G",38,"2026-01-16",1]
[null,null,null,null,null,null,null,null,null,null,null,null,null,null,null,null,null,null,null,null,null,null,null,null,null,null,null,null,null,null,"2026-01-17","H",38,"2026-01-17",1]
[null,null,null,null,null,null,null,null,null,null,null,null,null,null,null,null,null,null,null,null,null,null,null,null,null,null,null,null,null,null,"2026-01-18","B",39,"2026-01-18",1]
[null,null,null,null,null,null,null,null,null,null,null,null,null,null,null,null,null,null,null,null,null,null,null,null,null,null,null,null,null,null,"2026-01-19","C",39,"2026-01-19",1]
[null,null,null,null,null,null,null,null,null,null,null,null,null,null,null,null,null,null,null,null,null,null,null,null,null,null,null,null,null,null,"2026-01-20","D",39,"2026-01-20",1]
[null,null,null,null,null,null,null,null,null,null,null,null,null,null,null,null,null,null,null,null,null,null,null,null,null,null,null,null,null,null,"2026-01-21","E",39,"2026-01-21",1]
[null,null,null,null,null,null,null,null,null,null,null,null,null,null,null,null,null,null,null,null,null,null,null,null,null,null,null,null,null,null,"2026-01-22","F",39,"2026-01-22",1]
[null,null,null,null,null,null,null,null,null,null,null,null,null,null,null,null,null,null,null,null,null,null,null,null,null,null,null,null,null,null,"2026-01-23","G",39,"2026-01-23",1]
[null,null,null,null,null,null,null,null,null,null,null,null,null,null,null,null,null,null,null,null,null,null,null,null,null,null,null,null,null,null,"2026-01-24","H",39,"2026-01-24",1]
[null,null,null,null,null,null,null,null,null,null,null,null,null,null,null,null,null,null,null,null,null,null,null,null,null,null,null,null,null,null,"2026-01-25","B",40,"2026-01-25",1]
[null,null,null,null,null,null,null,null,null,null,null,null,null,null,null,null,null,null,null,null,null,null,null,null,null,null,null,null,null,null,"2026-01-26","C",40,"2026-01-26",1]
[null,null,null,null,null,null,null,null,null,null,null,null,null,null,null,null,null,null,null,null,null,null,null,null,null,null,null,null,null,null,"2026-01-27","D",40,"2026-01-27",1]
[null,null,null,null,null,null,null,null,null,null,null,null,null,null,null,null,null,null,null,null,null,null,null,null,null,null,null,null,null,null,"2026-01-28","E",40,"2026-01-28",1]
[null,null,null,null,null,null,null,null,null,null,null,null,null,null,null,null,null,null,null,null,null,null,null,null,null,null,null,null,null,null,"2026-01-29","F",40,"2026-01-29",1]
[null,null,null,null,null,null,null,null,null,null,null,null,null,null,null,null,null,null,null,null,null,null,null,null,null,null,null,null,null,null,"2026-01-30","G",40,"2026-01-30",1]
[null,null,null,null,null,null,null,null,null,null,null,null,null,null,null,null,null,null,null,null,null,null,null,null,null,null,null,null,null,null,"2026-01-31","H",40,"2026-01-31",1]
[null,null,null,null,null,null,null,null,null,null,null,null,null,null,null,null,null,null,null,null,null,null,null,null,null,null,null,null,null,null,"2026-02-01","K",36,"2026-02-01",1]
[null,null,null,null,null,null,null,null,null,null,null,null,null,null,null,null,null,null,null,null,null,null,null,null,null,null,null,null,null,null,"2026-02-02","L",36,"2026-02-02",1]
[null,null,null,null,null,null,null,null,null,null,null,null,null,null,null,null,null,null,null,null,null,null,null,null,null,null,null,null,null,null,"2026-02-03","M",36,"2026-02-03",1]
[null,null,null,null,null,null,null,null,null,null,null,null,null,null,null,null,null,null,null,null,null,null,null,null,null,null,null,null,null,null,"2026-02-04","N",36,"2026-02-04",1]
[null,null,null,null,null,null,null,null,null,null,null,null,null,null,null,null,null,null,null,null,null,null,null,null,null,null,null,null,null,null,"2026-02-05","O",36,"2026-02-05",1]
[null,null,null,null,null,null,null,null,null,null,null,null,null,null,null,null,null,null,null,null,null,null,null,null,null,null,null,null,null,null,"2026-02-06","P",36,"2026-02-06",1]
[null,null,null,null,null,null,null,null,null,null,null,null,null,null,null,null,null,null,null,null,null,null,null,null,null,null,null,null,null,null,"2026-02-07","Q",36,"2026-02-07",1]
[null,null,null,null,null,null,null,null,null,null,null,null,null,null,null,null,null,null,null,null,null,null,null,null,null,null,null,null,null,null,"2026-02-08","K",37,"2026-02-08",1]
[null,null,null,null,null,null,null,null,null,null,null,null,null,null,null,null,null,null,null,null,null,null,null,null,null,null,null,null,null,null,"2026-02-09","L",37,"2026-02-09",1]
[null,null,null,null,null,null,null,null,null,null,null,null,null,null,null,null,null,null,null,null,null,null,null,null,null,null,null,null,null,null,"2026-02-10","M",37,"2026-02-10",1]
[null,null,null,null,null,null,null,null,null,null,null,null,null,null,null,null,null,null,null,null,null,null,null,null,null,null,null,null,null,null,"2026-02-11","N",37,"2026-02-11",1]
[null,null,null,null,null,null,null,null,null,null,null,null,null,null,null,null,null,null,null,null,null,null,null,null,null,null,null,null,null,null,"2026-02-12","O",37,"2026-02-12",1]
[null,null,null,null,null,null,null,null,null,null,null,null,null,null,null,null,null,null,null,null,null,null,null,null,null,null,null,null,null,null,"2026-02-13","P",37,"2026-02-13",1]
[null,null,null,null,null,null,null,null,null,null,null,null,null,null,null,null,null,null,null,null,null,null,null,null,null,null,null,null,null,null,"2026-02-14","Q",37,"2026-02-14",1]
[null,null,null,null,null,null,null,null,null,null,null,null,null,null,null,null,null,null,null,null,null,null,null,null,null,null,null,null,null,null,"2026-02-15","K",38,"2026-02-15",1]
[null,null,null,null,null,null,null,null,null,null,null,null,null,null,null,null,null,null,null,null,null,null,null,null,null,null,null,null,null,null,"2026-02-16","L",38,"2026-02-16",1]
[null,null,null,null,null,null,null,null,null,null,null,null,null,null,null,null,null,null,null,null,null,null,null,null,null,null,null,null,null,null,"2026-02-17","M",38,"2026-02-17",1]
[null,null,null,null,null,null,null,null,null,null,null,null,null,null,null,null,null,null,null,null,null,null,null,null,null,null,null,null,null,null,"2026-02-18","N",38,"2026-02-18",1]
[null,null,null,null,null,null,null,null,null,null,null,null,null,null,null,null,null,null,null,null,null,null,null,null,null,null,null,null,null,null,"2026-02-19","O",38,"2026-02-19",1]
[null,null,null,null,null,null,null,null,null,null,null,null,null,null,null,null,null,null,null,null,null,null,null,null,null,null,null,null,null,null,"2026-02-20","P",38,"2026-02-20",1]
[null,null,null,null,null,null,null,null,null,null,null,null,null,null,null,null,null,null,null,null,null,null,null,null,null,null,null,null,null,null,"2026-02-21","Q",38,"2026-02-21",1]
[null,null,null,null,null,null,null,null,null,null,null,null,null,null,null,null,null,null,null,null,null,null,null,null,null,null,null,null,null,null,"2026-02-22","K",39,"2026-02-22",1]
[null,null,null,null,null,null,null,null,null,null,null,null,null,null,null,null,null,null,null,null,null,null,null,null,null,null,null,null,null,null,"2026-02-23","L",39,"2026-02-23",1]
[null,null,null,null,null,null,null,null,null,null,null,null,null,null,null,null,null,null,null,null,null,null,null,null,null,null,null,null,null,null,"2026-02-24","M",39,"2026-02-24",1]
[null,null,null,null,null,null,null,null,null,null,null,null,null,null,null,null,null,null,null,null,null,null,null,null,null,null,null,null,null,null,"2026-02-25","N",39,"2026-02-25",1]
[null,null,null,null,null,null,null,null,null,null,null,null,null,null,null,null,null,null,null,null,null,null,null,null,null,null,null,null,null,null,"2026-02-26","O",39,"2026-02-26",1]
[null,null,null,null,null,null,null,null,null,null,null,null,null,null,null,null,null,null,null,null,null,null,null,null,null,null,null,null,null,null,"2026-02-27","P",39,"2026-02-27",1]
[null,null,null,null,null,null,null,null,null,null,null,null,null,null,null,null,null,null,null,null,null,null,null,null,null,null,null,null,null,null,"2026-02-28","Q",39,"2026-02-28",1]
[null,null,null,null,null,null,null,null,null,null,null,null,null,null,null,null,null,null,null,null,null,null,null,null,null,null,null,null,null,null,"2026-03-01","T",36,"2026-03-01",1]
[null,null,null,null,null,null,null,null,null,null,null,null,null,null,null,null,null,null,null,null,null,null,null,null,null,null,null,null,null,null,"2026-03-02","U",36,"2026-03-02",1]
[null,null,null,null,null,null,null,null,null,null,null,null,null,null,null,null,null,null,null,null,null,null,null,null,null,null,null,null,null,null,"2026-03-03","V",36,"2026-03-03",1]
[null,null,null,null,null,null,null,null,null,null,null,null,null,null,null,null,null,null,null,null,null,null,null,null,null,null,null,null,null,null,"2026-03-04","W",36,"2026-03-04",1]
[null,null,null,null,null,null,null,null,null,null,null,null,null,null,null,null,null,null,null,null,null,null,null,null,null,null,null,null,null,null,"2026-03-05","X",36,"2026-03-05",1]
[null,null,null,null,null,null,null,null,null,null,null,null,null,null,null,null,null,null,null,null,null,null,null,null,null,null,null,null,null,null,"2026-03-06","Y",36,"2026-03-06",1]
[null,null,null,null,null,null,null,null,null,null,null,null,null,null,null,null,null,null,null,null,null,null,null,null,null,null,null,null,null,null,"2026-03-07","Z",36,"2026-03-07",1]
[null,null,null,null,null,null,null,null,null,null,null,null,null,null,null,null,null,null,null,null,null,null,null,null,null,null,null,null,null,null,"2026-03-08","T",37,"2026-03-08",1]
[null,null,null,null,null,null,null,null,null,null,null,null,null,null,null,null,null,null,null,null,null,null,null,null,null,null,null,null,null,null,"2026-03-09","U",37,"2026-03-09",1]
[null,null,null,null,null,null,null,null,null,null,null,null,null,null,null,null,null,null,null,null,null,null,null,null,null,null,null,null,null,null,"2026-03-10","V",37,"2026-03-10",1]
[null,null,null,null,null,null,null,null,null,null,null,null,null,null,null,null,null,null,null,null,null,null,null,null,null,null,null,null,null,null,"2026-03-11","W",37,"2026-03-11",1]
[null,null,null,null,null,null,null,null,null,null,null,null,null,null,null,null,null,null,null,null,null,null,null,null,null,null,null,null,null,null,"2026-03-12","X",37,"2026-03-12",1]
[null,null,null,null,null,null,null,null,null,null,null,null,null,null,null,null,null,null,null,null,null,null,null,null,null,null,null,null,null,null,"2026-03-13","Y",37,"2026-03-13",1]
[null,null,null,null,null,null,null,null,null,null,null,null,null,null,null,null,null,null,null,null,null,null,null,null,null,null,null,null,null,null,"2026-03-14","Z",37,{"$f":"IF(INDIRECT(AF272&AG272)=\"\",\"\",AE272)","v":"2026-03-14"},{"$f":"IF(AH272=\"\",0,1)","v":1}]
[null,null,null,null,null,null,null,null,null,null,null,null,null,null,null,null,null,null,null,null,null,null,null,null,null,null,null,null,null,null,"2026-03-15","T",38,"2026-03-15",1]
[null,null,null,null,null,null,null,null,null,null,null,null,null,null,null,null,null,null,null,null,null,null,null,null,null,null,null,null,null,null,"2026-03-16","U",38,"2026-03-16",1]
[null,null,null,null,null,null,null,null,null,null,null,null,null,null,null,null,null,null,null,null,null,null,null,null,null,null,null,null,null,null,"2026-03-17","V",38,"2026-03-17",1]
[null,null,null,null,null,null,null,null,null,null,null,null,null,null,null,null,null,null,null,null,null,null,null,null,null,null,null,null,null,null,"2026-03-18","W",38,"2026-03-18",1]
[null,null,null,null,null,null,null,null,null,null,null,null,null,null,null,null,null,null,null,null,null,null,null,null,null,null,null,null,null,null,"2026-03-19","X",38,"2026-03-19",1]
[null,null,null,null,null,null,null,null,null,null,null,null,null,null,null,null,null,null,null,null,null,null,null,null,null,null,null,null,null,null,"2026-03-20","Y",38,"2026-03-20",1]
[null,null,null,null,null,null,null,null,null,null,null,null,null,null,null,null,null,null,null,null,null,null,null,null,null,null,null,null,null,null,"2026-03-21","Z",38,"2026-03-21",1]
[null,null,null,null,null,null,null,null,null,null,null,null,null,null,null,null,null,null,null,null,null,null,null,null,null,null,null,null,null,null,"2026-03-22","T",39,"2026-03-22",1]
[null,null,null,null,null,null,null,null,null,null,null,null,null,null,null,null,null,null,null,null,null,null,null,null,null,null,null,null,null,null,"2026-03-23","U",39,"2026-03-23",1]
[null,null,null,null,null,null,null,null,null,null,null,null,null,null,null,null,null,null,null,null,null,null,null,null,null,null,null,null,null,null,"2026-03-24","V",39,"2026-03-24",1]
[null,null,null,null,null,null,null,null,null,null,null,null,null,null,null,null,null,null,null,null,null,null,null,null,null,null,null,null,null,null,"2026-03-25","W",39,"2026-03-25",1]
[null,null,null,null,null,null,null,null,null,null,null,null,null,null,null,null,null,null,null,null,null,null,null,null,null,null,null,null,null,null,"2026-03-26","X",39,"2026-03-26",1]
[null,null,null,null,null,null,null,null,null,null,null,null,null,null,null,null,null,null,null,null,null,null,null,null,null,null,null,null,null,null,"2026-03-27","Y",39,"2026-03-27",1]
[null,null,null,null,null,null,null,null,null,null,null,null,null,null,null,null,null,null,null,null,null,null,null,null,null,null,null,null,null,null,"2026-03-28","Z",39,"2026-03-28",1]
[null,null,null,null,null,null,null,null,null,null,null,null,null,null,null,null,null,null,null,null,null,null,null,null,null,null,null,null,null,null,"2026-03-29","T",40,"2026-03-29",1]
[null,null,null,null,null,null,null,null,null,null,null,null,null,null,null,null,null,null,null,null,null,null,null,null,null,null,null,null,null,null,"2026-03-30","U",40,"2026-03-30",1]
[null,null,null,null,null,null,null,null,null,null,null,null,null,null,null,null,null,null,null,null,null,null,null,null,null,null,null,null,null,null,"2026-03-31","V",40,"2026-03-31",1]
[null,null,null,null,null,null,null,null,null,null,null,null,null,null,null,null,null,null,null,null,null,null,null,null,null,null,null,null,null,null,"2026-04-01","E",45,"2026-04-01",1]
[null,null,null,null,null,null,null,null,null,null,null,null,null,null,null,null,null,null,null,null,null,null,null,null,null,null,null,null,null,null,"2026-04-02","F",45,"2026-04-02",1]
[null,null,null,null,null,null,null,null,null,null,null,null,null,null,null,null,null,null,null,null,null,null,null,null,null,null,null,null,null,null,"2026-04-03","G",45,"2026-04-03",1]
[null,null,null,null,null,null,null,null,null,null,null,null,null,null,null,null,null,null,null,null,null,null,null,null,null,null,null,null,null,null,"2026-04-04","H",45,"2026-04-04",1]
[null,null,null,null,null,null,null,null,null,null,null,null,null,null,null,null,null,null,null,null,null,null,null,null,null,null,null,null,null,null,"2026-04-05","B",46,"2026-04-05",1]
[null,null,null,null,null,null,null,null,null,null,null,null,null,null,null,null,null,null,null,null,null,null,null,null,null,null,null,null,null,null,"2026-04-06","C",46,"2026-04-06",1]
[null,null,null,null,null,null,null,null,null,null,null,null,null,null,null,null,null,null,null,null,null,null,null,null,null,null,null,null,null,null,"2026-04-07","D",46,"2026-04-07",1]
[null,null,null,null,null,null,null,null,null,null,null,null,null,null,null,null,null,null,null,null,null,null,null,null,null,null,null,null,null,null,"2026-04-08","E",46,"2026-04-08",1]
[null,null,null,null,null,null,null,null,null,null,null,null,null,null,null,null,null,null,null,null,null,null,null,null,null,null,null,null,null,null,"2026-04-09","F",46,"2026-04-09",1]
[null,null,null,null,null,null,null,null,null,null,null,null,null,null,null,null,null,null,null,null,null,null,null,null,null,null,null,null,null,null,"2026-04-10","G",46,"2026-04-10",1]
[null,null,null,null,null,null,null,null,null,null,null,null,null,null,null,null,null,null,null,null,null,null,null,null,null,null,null,null,null,null,"2026-04-11","H",46,"2026-04-11",1]
[null,null,null,null,null,null,null,null,null,null,null,null,null,null,null,null,null,null,null,null,null,null,null,null,null,null,null,null,null,null,"2026-04-12","B",47,"2026-04-12",1]
[null,null,null,null,null,null,null,null,null,null,null,null,null,null,null,null,null,null,null,null,null,null,null,null,null,null,null,null,null,null,"2026-04-13","C",47,"2026-04-13",1]
[null,null,null,null,null,null,null,null,null,null,null,null,null,null,null,null,null,null,null,null,null,null,null,null,null,null,null,null,null,null,"2026-04-14","D",47,"2026-04-14",1]
[null,null,null,null,null,null,null,null,null,null,null,null,null,null,null,null,null,null,null,null,null,null,null,null,null,null,null,null,null,null,"2026-04-15","E",47,"2026-04-15",1]
[null,null,null,null,null,null,null,null,null,null,null,null,null,null,null,null,null,null,null,null,null,null,null,null,null,null,null,null,null,null,"2026-04-16","F",47,"2026-04-16",1]
[null,null,null,null,null,null,null,null,null,null,null,null,null,null,null,null,null,null,null,null,null,null,null,null,null,null,null,null,null,null,"2026-04-17","G",47,"2026-04-17",1]
[null,null,null,null,null,null,null,null,null,null,null,null,null,null,null,null,null,null,null,null,null,null,null,null,null,null,null,null,null,null,"2026-04-18","H",47,"2026-04-18",1]
[null,null,null,null,null,null,null,null,null,null,null,null,null,null,null,null,null,null,null,null,null,null,null,null,null,null,null,null,null,null,"2026-04-19","B",48,"2026-04-19",1]
[null,null,null,null,null,null,null,null,null,null,null,null,null,null,null,null,null,null,null,null,null,null,null,null,null,null,null,null,null,null,"2026-04-20","C",48,"2026-04-20",1]
[null,null,null,null,null,null,null,null,null,null,null,null,null,null,null,null,null,null,null,null,null,null,null,null,null,null,null,null,null,null,"2026-04-21","D",48,"2026-04-21",1]
[null,null,null,null,null,null,null,null,null,null,null,null,null,null,null,null,null,null,null,null,null,null,null,null,null,null,null,null,null,null,"2026-04-22","E",48,"2026-04-22",1]
[null,null,null,null,null,null,null,null,null,null,null,null,null,null,null,null,null,null,null,null,null,null,null,null,null,null,null,null,null,null,"2026-04-23","F",48,"2026-04-23",1]
[null,null,null,null,null,null,null,null,null,null,null,null,null,null,null,null,null,null,null,null,null,null,null,null,null,null,null,null,null,null,"2026-04-24","G",48,"2026-04-24",1]
[null,null,null,null,null,null,null,null,null,null,null,null,null,null,null,null,null,null,null,null,null,null,null,null,null,null,null,null,null,null,"2026-04-25","H",48,"2026-04-25",1]
[null,null,null,null,null,null,null,null,null,null,null,null,null,null,null,null,null,null,null,null,null,null,null,null,null,null,null,null,null,null,"2026-04-26","B",49,"2026-04-26",1]
[null,null,null,null,null,null,null,null,null,null,null,null,null,null,null,null,null,null,null,null,null,null,null,null,null,null,null,null,null,null,"2026-04-27","C",49,"2026-04-27",1]
[null,null,null,null,null,null,null,null,null,null,null,null,null,null,null,null,null,null,null,null,null,null,null,null,null,null,null,null,null,null,"2026-04-28","D",49,"2026-04-28",1]
[null,null,null,null,null,null,null,null,null,null,null,null,null,null,null,null,null,null,null,null,null,null,null,null,null,null,null,null,null,null,"2026-04-29","E",49,"2026-04-29",1]
[null,null,null,null,null,null,null,null,null,null,null,null,null,null,null,null,null,null,null,null,null,null,null,null,null,null,null,null,null,null,"2026-04-30","F",49,"2026-04-30",1]
[null,null,null,null,null,null,null,null,null,null,null,null,null,null,null,null,null,null,null,null,null,null,null,null,null,null,null,null,null,null,"2026-05-01","P",45,"2026-05-01",1]
[null,null,null,null,null,null,null,null,null,null,null,null,null,null,null,null,null,null,null,null,null,null,null,null,null,null,null,null,null,null,"2026-05-02","Q",45,"2026-05-02",1]
[null,null,null,null,null,null,null,null,null,null,null,null,null,null,null,null,null,null,null,null,null,null,null,null,null,null,null,null,null,null,"2026-05-03","K",46,"2026-05-03",1]
[null,null,null,null,null,null,null,null,null,null,null,null,null,null,null,null,null,null,null,null,null,null,null,null,null,null,null,null,null,null,"2026-05-04","L",46,"2026-05-04",1]
[null,null,null,null,null,null,null,null,null,null,null,null,null,null,null,null,null,null,null,null,null,null,null,null,null,null,null,null,null,null,"2026-05-05","M",46,"2026-05-05",1]
[null,null,null,null,null,null,null,null,null,null,null,null,null,null,null,null,null,null,null,null,null,null,null,null,null,null,null,null,null,null,"2026-05-06","N",46,"2026-05-06",1]
[null,null,null,null,null,null,null,null,null,null,null,null,null,null,null,null,null,null,null,null,null,null,null,null,null,null,null,null,null,null,"2026-05-07","O",46,"2026-05-07",1]
[null,null,null,null,null,null,null,null,null,null,null,null,null,null,null,null,null,null,null,null,null,null,null,null,null,null,null,null,null,null,"2026-05-08","P",46,"2026-05-08",1]
[null,null,null,null,null,null,null,null,null,null,null,null,null,null,null,null,null,null,null,null,null,null,null,null,null,null,null,null,null,null,"2026-05-09","Q",46,"2026-05-09",1]
[null,null,null,null,null,null,null,null,null,null,null,null,null,null,null,null,null,null,null,null,null,null,null,null,null,null,null,null,null,null,"2026-05-10","K",47,"2026-05-10",1]
[null,null,null,null,null,null,null,null,null,null,null,null,null,null,null,null,null,null,null,null,null,null,null,null,null,null,null,null,null,null,"2026-05-11","L",47,"2026-05-11",1]
[null,null,null,null,null,null,null,null,null,null,null,null,null,null,null,null,null,null,null,null,null,null,null,null,null,null,null,null,null,null,"2026-05-12","M",47,"2026-05-12",1]
[null,null,null,null,null,null,null,null,null,null,null,null,null,null,null,null,null,null,null,null,null,null,null,null,null,null,null,null,null,null,"2026-05-13","N",47,"2026-05-13",1]
[null,null,null,null,null,null,null,null,null,null,null,null,null,null,null,null,null,null,null,null,null,null,null,null,null,null,null,null,null,null,"2026-05-14","O",47,"2026-05-14",1]
[null,null,null,null,null,null,null,null,null,null,null,null,null,null,null,null,null,null,null,null,null,null,null,null,null,null,null,null,null,null,"2026-05-15","P",47,"2026-05-15",1]
[null,null,null,null,null,null,null,null,null,null,null,null,null,null,null,null,null,null,null,null,null,null,null,null,null,null,null,null,null,null,"2026-05-16","Q",47,"2026-05-16",{"$f":"IF(AH335=\"\",0,1)","v":1}]
[null,null,null,null,null,null,null,null,null,null,null,null,null,null,null,null,null,null,null,null,null,null,null,null,null,null,null,null,null,null,"2026-05-17","K",48,{"$f":"IF(INDIRECT(AF336&AG336)=\"\",\"\",AE336)","v":"2026-05-17"},1]
[null,null,null,null,null,null,null,null,null,null,null,null,null,null,null,null,null,null,null,null,null,null,null,null,null,null,null,null,null,null,"2026-05-18","L",48,"2026-05-18",1]
[null,null,null,null,null,null,null,null,null,null,null,null,null,null,null,null,null,null,null,null,null,null,null,null,null,null,null,null,null,null,"2026-05-19","M",48,"2026-05-19",1]
[null,null,null,null,null,null,null,null,null,null,null,null,null,null,null,null,null,null,null,null,null,null,null,null,null,null,null,null,null,null,"2026-05-20","N",48,"2026-05-20",1]
[null,null,null,null,null,null,null,null,null,null,null,null,null,null,null,null,null,null,null,null,null,null,null,null,null,null,null,null,null,null,"2026-05-21","O",48,"2026-05-21",1]
[null,null,null,null,null,null,null,null,null,null,null,null,null,null,null,null,null,null,null,null,null,null,null,null,null,null,null,null,null,null,"2026-05-22","P",48,"2026-05-22",1]
[null,null,null,null,null,null,null,null,null,null,null,null,null,null,null,null,null,null,null,null,null,null,null,null,null,null,null,null,null,null,"2026-05-23","Q",48,"2026-05-23",1]
[null,null,null,null,null,null,null,null,null,null,null,null,null,null,null,null,null,null,null,null,null,null,null,null,null,null,null,null,null,null,"2026-05-24","K",49,"2026-05-24",1]
[null,null,null,null,null,null,null,null,null,null,null,null,null,null,null,null,null,null,null,null,null,null,null,null,null,null,null,null,null,null,"2026-05-25","L",49,"2026-05-25",1]
[null,null,null,null,null,null,null,null,null,null,null,null,null,null,null,null,null,null,null,null,null,null,null,null,null,null,null,null,null,null,"2026-05-26","M",49,"2026-05-26",1]
[null,null,null,null,null,null,null,null,null,null,null,null,null,null,null,null,null,null,null,null,null,null,null,null,null,null,null,null,null,null,"2026-05-27","N",49,"2026-05-27",1]
[null,null,null,null,null,null,null,null,null,null,null,null,null,null,null,null,null,null,null,null,null,null,null,null,null,null,null,null,null,null,"2026-05-28","O",49,"2026-05-28",1]
[null,null,null,null,null,null,null,null,null,null,null,null,null,null,null,null,null,null,null,null,null,null,null,null,null,null,null,null,null,null,"2026-05-29","P",49,"2026-05-29",1]
[null,null,null,null,null,null,null,null,null,null,null,null,null,null,null,null,null,null,null,null,null,null,null,null,null,null,null,null,null,null,"2026-05-30","Q",49,"2026-05-30",1]
[null,null,null,null,null,null,null,null,null,null,null,null,null,null,null,null,null,null,null,null,null,null,null,null,null,null,null,null,null,null,"2026-05-31","K",50,"2026-05-31",1]
[null,null,null,null,null,null,null,null,null,null,null,null,null,null,null,null,null,null,null,null,null,null,null,null,null,null,null,null,null,null,"2026-06-01","U",45,"2026-06-01",1]
[null,null,null,null,null,null,null,null,null,null,null,null,null,null,null,null,null,null,null,null,null,null,null,null,null,null,null,null,null,null,"2026-06-02","V",45,"2026-06-02",1]
[null,null,null,null,null,null,null,null,null,null,null,null,null,null,null,null,null,null,null,null,null,null,null,null,null,null,null,null,null,null,"2026-06-03","W",45,"2026-06-03",1]
[null,null,null,null,null,null,null,null,null,null,null,null,null,null,null,null,null,null,null,null,null,null,null,null,null,null,null,null,null,null,"2026-06-04","X",45,"2026-06-04",1]
[null,null,null,null,null,null,null,null,null,null,null,null,null,null,null,null,null,null,null,null,null,null,null,null,null,null,null,null,null,null,"2026-06-05","Y",45,"2026-06-05",1]
[null,null,null,null,null,null,null,null,null,null,null,null,null,null,null,null,null,null,null,null,null,null,null,null,null,null,null,null,null,null,"2026-06-06","Z",45,"2026-06-06",1]
[null,null,null,null,null,null,null,null,null,null,null,null,null,null,null,null,null,null,null,null,null,null,null,null,null,null,null,null,null,null,"2026-06-07","T",46,"2026-06-07",1]
[null,null,null,null,null,null,null,null,null,null,null,null,null,null,null,null,null,null,null,null,null,null,null,null,null,null,null,null,null,null,"2026-06-08","U",46,"2026-06-08",1]
[null,null,null,null,null,null,null,null,null,null,null,null,null,null,null,null,null,null,null,null,null,null,null,null,null,null,null,null,null,null,"2026-06-09","V",46,"2026-06-09",1]
[null,null,null,null,null,null,null,null,null,null,null,null,null,null,null,null,null,null,null,null,null,null,null,null,null,null,null,null,null,null,"2026-06-10","W",46,"2026-06-10",1]
[null,null,null,null,null,null,null,null,null,null,null,null,null,null,null,null,null,null,null,null,null,null,null,null,null,null,null,null,null,null,"2026-06-11","X",46,"2026-06-11",1]
[null,null,null,null,null,null,null,null,null,null,null,null,null,null,null,null,null,null,null,null,null,null,null,null,null,null,null,null,null,null,"2026-06-12","Y",46,"2026-06-12",1]
[null,null,null,null,null,null,null,null,null,null,null,null,null,null,null,null,null,null,null,null,null,null,null,null,null,null,null,null,null,null,"2026-06-13","Z",46,"2026-06-13",1]
[null,null,null,null,null,null,null,null,null,null,null,null,null,null,null,null,null,null,null,null,null,null,null,null,null,null,null,null,null,null,"2026-06-14","T",47,"2026-06-14",1]
[null,null,null,null,null,null,null,null,null,null,null,null,null,null,null,null,null,null,null,null,null,null,null,null,null,null,null,null,null,null,"2026-06-15","U",47,"2026-06-15",1]
[null,null,null,null,null,null,null,null,null,null,null,null,null,null,null,null,null,null,null,null,null,null,null,null,null,null,null,null,null,null,"2026-06-16","V",47,"2026-06-16",1]
[null,null,null,null,null,null,null,null,null,null,null,null,null,null,null,null,null,null,null,null,null,null,null,null,null,null,null,null,null,null,"2026-06-17","W",47,"2026-06-17",1]
[null,null,null,null,null,null,null,null,null,null,null,null,null,null,null,null,null,null,null,null,null,null,null,null,null,null,null,null,null,null,"2026-06-18","X",47,"2026-06-18",1]
[null,null,null,null,null,null,null,null,null,null,null,null,null,null,null,null,null,null,null,null,null,null,null,null,null,null,null,null,null,null,"2026-06-19","Y",47,"2026-06-19",1]
[null,null,null,null,null,null,null,null,null,null,null,null,null,null,null,null,null,null,null,null,null,null,null,null,null,null,null,null,null,null,"2026-06-20","Z",47,"2026-06-20",1]
[null,null,null,null,null,null,null,null,null,null,null,null,null,null,null,null,null,null,null,null,null,null,null,null,null,null,null,null,null,null,"2026-06-21","T",48,"2026-06-21",1]
[null,null,null,null,null,null,null,null,null,null,null,null,null,null,null,null,null,null,null,null,null,null,null,null,null,null,null,null,null,null,"2026-06-22","U",48,"2026-06-22",1]
[null,null,null,null,null,null,null,null,null,null,null,null,null,null,null,null,null,null,null,null,null,null,null,null,null,null,null,null,null,null,"2026-06-23","V",48,"2026-06-23",1]
[null,null,null,null,null,null,null,null,null,null,null,null,null,null,null,null,null,null,null,null,null,null,null,null,null,null,null,null,null,null,"2026-06-24","W",48,"2026-06-24",1]
[null,null,null,null,null,null,null,null,null,null,null,null,null,null,null,null,null,null,null,null,null,null,null,null,null,null,null,null,null,null,"2026-06-25","X",48,"2026-06-25",1]
[null,null,null,null,null,null,null,null,null,null,null,null,null,null,null,null,null,null,null,null,null,null,null,null,null,null,null,null,null,null,"2026-06-26","Y",48,"2026-06-26",1]
[null,null,null,null,null,null,null,null,null,null,null,null,null,null,null,null,null,null,null,null,null,null,null,null,null,null,null,null,null,null,"2026-06-27","Z",48,"2026-06-27",1]
[null,null,null,null,null,null,null,null,null,null,null,null,null,null,null,null,null,null,null,null,null,null,null,null,null,null,null,null,null,null,"2026-06-28","T",49,"2026-06-28",1]
[null,null,null,null,null,null,null,null,null,null,null,null,null,null,null,null,null,null,null,null,null,null,null,null,null,null,null,null,null,null,"2026-06-29","U",49,"2026-06-29",1]
[null,null,null,null,null,null,null,null,null,null,null,null,null,null,null,null,null,null,null,null,null,null,null,null,null,null,null,null,null,null,"2026-06-30","V",49,"2026-06-30",1]

{"sheet":"data","index":2,"n_rows":215,"n_cols":20,"rows_kept":215,"cut":false,"hidden":false,"merged":[]}
["DA OrgCode","Type","School_Name per OSD","Prog_Name per OSD","Rate_Annual","Rate_Daily","Total_Days","Start_Date","End_Date","State","Legacy Program Code","DA Org Name","DA Code + Name","Summer (Y/N)","DA Code + Name",null,null,null,"Leap Year (366 annual rate calculation)","Per Elena, we have to change 365 days per OSD to 366 days and adjust an annual rate only for the programs that run for a full year (366 days in FY24)"]
[]
[]
["09505001","Res Ed","American School for the Deaf","MA Educational/Residential",121303,673.92,180,null,null,"CT",null,"American School for the Deaf: DSN Residential Program",{"$f":"CONCATENATE($A4,\"-\",$L4)","v":"09505001-American School for the Deaf: DSN Residential Program"},{"$f":"IF(B4<>\"Summer\", \"No\", \"Yes\")","v":"No"},{"$f":"CONCATENATE($A4,\"-\",$L4)","v":"09505001-American School for the Deaf: DSN Residential Program"}," ",{"$f":"TRIM(A4)","v":"09505001"},null,{"$f":"IF(G4=366,366*F4,0)","v":0}]
["09505002","Day","American School for the Deaf","MA Educational/Day",84065,467.02777777777777,180,null,null,"CT",null,"American School for the Deaf: DSN Day Program",{"$f":"CONCATENATE($A5,\"-\",$L5)","v":"09505002-American School for the Deaf: DSN Day Program"},"No",{"$f":"CONCATENATE($A5,\"-\",$L5)","v":"09505002-American School for the Deaf: DSN Day Program"}," ","09505002",null,0]
["09505004","Day","American School for the Deaf","PACES Day Education 215",212895,990.20930232558135,215,null,null,"CT",null,"American School for the Deaf: Intensive Day","09505004-American School for the Deaf: Intensive Day","No","09505004-American School for the Deaf: Intensive Day"," ","09505004",null,0]
["09505005","Day","Seven Hills New Hampshire, Inc.","Seven Hills at Crotched Mountain Day Program",122583,557.1954545454546,220,null,null,"NH",null,"Educational Day Program","09505005-Educational Day Program","No","09505005-Educational Day Program"," ","09505005",null,0]
["09505006","Res Ed","Seven Hills New Hampshire, Inc.","Seven Hills at Crotched Mountain Residential Program",299864,821.54520547945208,365,null,null,"NH",null,"Crotched Mountain: Group Home Program","09505006-Crotched Mountain: Group Home Program","No","09505006-Crotched Mountain: Group Home Program"," ","09505006",null,0]
["09505008","Res Ed","Easter Seals of New Hampshire","Easterseals Gammon Academy at Krol House - Regular",309721.84000000003,848.55298630136997,365,null,null,"NH",null,"Easter Seals of New Hampshire: Jolicouer Krol House Residential Regular","09505008-Easter Seals of New Hampshire: Jolicouer Krol House Residential Regular","No","09505008-Easter Seals of New Hampshire: Jolicouer Krol House Residential Regular"," ","09505008",null,0]
["09505009","Res Ed","Easter Seals of New Hampshire","Easterseals Gammon Academy at Zachary Road - Regular",425039.94,1164.4929863013699,365,null,null,"NH",null,"Easter Seals of New Hampshire: Jolicouer Zachary Road Residential Regular","09505009-Easter Seals of New Hampshire: Jolicouer Zachary Road Residential Regular","No","09505009-Easter Seals of New Hampshire: Jolicouer Zachary Road Residential Regular"," ","09505009",null,0]
["09505010","Res Ed","Easter Seals of New Hampshire","Easterseals Gammon Academy at Zachary Road - Intensive",586341.26,1606.4144109589042,365,null,null,"NH",null,"Easter Seals of New Hampshire: Jolicouer Zachary Road Residential Intensive","09505010-Easter Seals of New Hampshire: Jolicouer Zachary Road Residential Intensive","No","09505010-Easter Seals of New Hampshire: Jolicouer Zachary Road Residential Intensive"," ","09505010",null,0]
["09505012","Res Ed","Easter Seals of New Hampshire","Easterseals Gammon Academy at Lancaster- Regular ",410647.87,1125.0626575342465,365,null,null,"NH",null,"Developmental Disabilities Middle School Lancaster Regular","09505012-Developmental Disabilities Middle School Lancaster Regular","No","09505012-Developmental Disabilities Middle School Lancaster Regular"," ","09505012",null,0]
["09505013","Res Ed","Easter Seals of New Hampshire","Easterseals Gammon Academy at Lancaster - Int.",571949.16,1566.9840000000002,365,null,null,"NH",null,"Developmental Disabilities Middle School Lancaster Intensive","09505013-Developmental Disabilities Middle School Lancaster Intensive","No","09505013-Developmental Disabilities Middle School Lancaster Intensive"," ","09505013",null,0]
["09505014","Day","Greenwood School","Greenwood School -Day",76400,499.34640522875816,153,null,null,"VT",null,"Greenwood School: The Greenwood School","09505014-Greenwood School: The Greenwood School","No","09505014-Greenwood School: The Greenwood School"," ","09505014",null,0]
["09505017","Day","The Learning Clinic, Inc.","Day",117964.77,515.13,229,null,null,"CT",null,"The Learning Clinic: Day Program","09505017-The Learning Clinic: Day Program","No","09505017-The Learning Clinic: Day Program"," ","09505017",null,0]
["09505019","Day","Williams Bridge Academy","Learning Skills Academy",67516.2,375.09,180,null,null,"NH",null,"Learning Skills Academy: Middle and Lower High School Program (Grades 3-12)","09505019-Learning Skills Academy: Middle and Lower High School Program (Grades 3-12)","No","09505019-Learning Skills Academy: Middle and Lower High School Program (Grades 3-12)"," ","09505019",null,0]
["09505020","Summer","Williams Bridge Academy","Summer",2934.56,183.41,16,null,null,"NH",null,"Learning Skills Academy: Summer Program","09505020-Learning Skills Academy: Summer Program","Yes","09505020-Learning Skills Academy: Summer Program"," ","09505020",null,0]
["09505021","Day","Meeting Street School","Basic",88907,404.12272727272727,220,null,null,"RI",null,"Meeting Street School","09505021-Meeting Street School","No","09505021-Meeting Street School"," ","09505021",null,0]
["09505024","Day"," The home for little Wanderers","Wediko School at The home for little Wanderers",89497.08,403.14,222,null,null,"NH",null,"Wediko Children Services","09505024-Wediko Children Services","No","09505024-Wediko Children Services"," ","09505024",null,0]
["09505025","Day","Wolf School","Wolf School",72500,442.07317073170731,164,null,null,"RI",null,"Wolf School Day School","09505025-Wolf School Day School","No","09505025-Wolf School Day School"," ","09505025",null,0]
["09505028","Res Ed","Mount Prospect Academy","Mount Prospect Academy/Campton ERT",380355.55,1042.07,365,null,null,"NH",null,"Mount Prospect Academy-Campton (Beckett House Campton)","09505028-Mount Prospect Academy-Campton (Beckett House Campton)","No","09505028-Mount Prospect Academy-Campton (Beckett House Campton)"," ","09505028",null,0]
["09505029","Res Ed","Mount Prospect Academy","Mount Prospect Academy/Rummey",328116.75,898.95,365,null,null,"NH",null,"Mount Prospect Academy-Rumney (Beckett House Rumney)","09505029-Mount Prospect Academy-Rumney (Beckett House Rumney)","No","09505029-Mount Prospect Academy-Rumney (Beckett House Rumney)"," ","09505029",null,0]
["09505031","Res Ed","Mount Prospect Academy","Mount Prospect Academy/Warren Adventure",303818.7,832.38,365,null,null,"NH",null,"Mount Prospect Academy-Warren (Beckett House Warren)","09505031-Mount Prospect Academy-Warren (Beckett House Warren)","No","09505031-Mount Prospect Academy-Warren (Beckett House Warren)"," ","09505031",null,0]
["09505034","Day","Lifespan School Solutions/Bradley Schools","Bradley School Portsmouth Program Standard Rate",66435,309,215,null,null,"RI",null,"Portsmouth Transitional (Bradley School Portsmouth)","09505034-Portsmouth Transitional (Bradley School Portsmouth)","No","09505034-Portsmouth Transitional (Bradley School Portsmouth)"," ","09505034",null,0]
["09505035","Day","Lifespan School Solutions/Bradley Schools","Bradley School Portsmouth Program Intensive Rate",80840,376,215,null,null,"RI",null,"Portsmouth Intensive (Bradley School Portsmouth)","09505035-Portsmouth Intensive (Bradley School Portsmouth)","No","09505035-Portsmouth Intensive (Bradley School Portsmouth)"," ","09505035",null,0]
["09505037","Day","Lifespan School Solutions/Bradley Schools","Bradley School Providence Program Standard Rate",66435,309,215,null,null,"RI",null,"Bradley School-Providence: East Providence Treatment (Bradley School Providence)","09505037-Bradley School-Providence: East Providence Treatment (Bradley School Providence)","No","09505037-Bradley School-Providence: East Providence Treatment (Bradley School Providence)"," ","09505037",null,0]
["09505040","Day","Lifespan School Solutions/Bradley Schools","Partnership Standard Rate Bradley School Portsmouth Partnership Program",56115,261,215,null,null,"RI",null,"Bradley Partnership Martin Middle School (Bradley School Partnership)","09505040-Bradley Partnership Martin Middle School (Bradley School Partnership)","No","09505040-Bradley Partnership Martin Middle School (Bradley School Partnership)"," ","09505040",null,0]
["09505041","Res Ed","Groden Center","Resid. Inten.",324638,889.41917808219182,365,null,null,"RI",null,"The Groden Center: Residential and Intensive Day","09505041-The Groden Center: Residential and Intensive Day","No","09505041-The Groden Center: Residential and Intensive Day"," ","09505041",null,0]
["09505042","Day","Groden Center","Intensive Day Program Non Res Students (30 hours)",97939,447.21004566210047,219,null,null,"RI",null,"The Groden Center: Intensive Day (30 hours)","09505042-The Groden Center: Intensive Day (30 hours)","No","09505042-The Groden Center: Intensive Day (30 hours)"," ","09505042",null,0]
["09505043","Day","Groden Center","Intensive Day Program Res students  (33 3/4 hours) ",110181,503.10958904109589,219,null,null,"RI",null,"The Groden Center: Intensive Day (33.75 hours)","09505043-The Groden Center: Intensive Day (33.75 hours)","No","09505043-The Groden Center: Intensive Day (33.75 hours)"," ","09505043",null,0]
["09505044","Res. Ed","Devereux Glenholme","Glenholme",197100,540,365,null,null,"CT",null,"Devereux Glenholme: Out of State Program","09505044-Devereux Glenholme: Out of State Program","No","09505044-Devereux Glenholme: Out of State Program"," ","09505044",null,0]
["09505046","Day","Meeting Street School","Standard rate with 1 to 1 ",159527,725.12272727272727,220,null,null,"RI",null,"Meeting Street School (1 to 1)","09505046-Meeting Street School (1 to 1)","No","09505046-Meeting Street School (1 to 1)"," ","09505046",null,0]
["09505047","Day","Mount Prospect Academy","Ashuelot Valley Academy",78916.2,358.71,220,null,null,"NH",null,"Becket: Ashuelot Valley Academy Program","09505047-Becket: Ashuelot Valley Academy Program","No","09505047-Becket: Ashuelot Valley Academy Program"," ","09505047",null,0]
["09505048","Res Ed","Mount Prospect Academy","Mount Prospect Academy/Hampton ERT",399047.2,1093.28,365,null,null,"NH",null,"Becket: Mount Prospect Academy/Hampton Program","09505048-Becket: Mount Prospect Academy/Hampton Program","No","09505048-Becket: Mount Prospect Academy/Hampton Program"," ","09505048",null,0]
["09505049","Res","Grove","Grove School",172200,587.71331058020473,293,null,null,"CT",null,"Grove School Program","09505049-Grove School Program","No","09505049-Grove School Program"," ","09505049",null,0]
["09505050","Res Ed","Vermont Permanency Initiative, Inc.","NESFG Green Meadows Subacute",337347.6,924.24,365,null,null,"VT",null,"Becket: NESFG Green Meadows Subacute Program","09505050-Becket: NESFG Green Meadows Subacute Program","No","09505050-Becket: NESFG Green Meadows Subacute Program"," ","09505050",null,0]
["09505051","Res Ed","Vermont Permanency Initiative, Inc.","NESFG Intensive Residential",222471.15,609.51,365,null,null,"VT",null,"Becket: NESFG Intensive Residential Program","09505051-Becket: NESFG Intensive Residential Program","No","09505051-Becket: NESFG Intensive Residential Program"," ","09505051",null,0]
["09505053","Day","Mount Prospect Academy","Squamscott River Academy at Mount Prospect",80555.200000000012,366.16,220,null,null,"NH",null,"Becket: Squamscott River Academy at Mount Prospect Program","09505053-Becket: Squamscott River Academy at Mount Prospect Program","No","09505053-Becket: Squamscott River Academy at Mount Prospect Program"," ","09505053",null,0]
["09505054","Day","Chapel Haven Schleifer Center, Inc.","Chapel Haven Schleifer Center, Inc.",77500,352.27272727272725,220,null,null,"CT",null,"Chapel Haven Schleifer Center, Inc.: Chapel Haven Schleifer Center, Inc. Program","09505054-Chapel Haven Schleifer Center, Inc.: Chapel Haven Schleifer Center, Inc. Program","No","09505054-Chapel Haven Schleifer Center, Inc.: Chapel Haven Schleifer Center, Inc. Program"," ","09505054",null,0]
["09505055","Day","American School for the Deaf","PACES 180 Day Education",178237,990.20555555555552,180,null,null,"CT",null,"American School for the Deaf: PACES 180 Day Education","09505055-American School for the Deaf: PACES 180 Day Education","No","09505055-American School for the Deaf: PACES 180 Day Education"," ","09505055",null,0]
["09505056","Res","American School for the Deaf","PACES 180 Day Education/180 Residential",278833,1549.0759689922479,180,null,null,"CT",null,"American School for the Deaf: PACES 180 Day Education/180 Residential","09505056-American School for the Deaf: PACES 180 Day Education/180 Residential","No","09505056-American School for the Deaf: PACES 180 Day Education/180 Residential",null,"09505056",null,0]
["09505057","Res","American School for the Deaf","PACES 180 Day Residential",100596,558.86666666666667,180,null,null,"CT",null,"American School for the Deaf: PACES 180 Day Residential","09505057-American School for the Deaf: PACES 180 Day Residential","No","09505057-American School for the Deaf: PACES 180 Day Residential"," ","09505057",null,0]
["09505058","Res","American School for the Deaf","PACES 365 Res/PACES Day 215",498321.4,1365.2641095890413,365,null,null,"CT",null,"American School for the Deaf: PACES 365 Res/PACES Day 215","09505058-American School for the Deaf: PACES 365 Res/PACES Day 215","No","09505058-American School for the Deaf: PACES 365 Res/PACES Day 215"," ","09505058",null,0]
["09505059","RES","American School for the Deaf","PACES Day Residential 365",285426,781.98904109589046,365,null,null,"CT",null,"American School for the Deaf: PACES Day Residential 365","09505059-American School for the Deaf: PACES Day Residential 365","No","09505059-American School for the Deaf: PACES Day Residential 365"," ","09505059",null,0]
["09505060","Res Ed","Mount Prospect Academy","Mount Prospect Academy/ Plymouth Cast",265245.5,726.7,365,null,null,"NH",null,"Becket: Mount Prospect Academy/ Plymouth Cast","09505060-Becket: Mount Prospect Academy/ Plymouth Cast","No","09505060-Becket: Mount Prospect Academy/ Plymouth Cast"," ","09505060",null,0]
["09505061","Res Ed","Mount Prospect Academy","Mount Prospect Academy/Pike (Subacute)",418917.8,1147.72,365,null,null,"NH",null,"Becket: Mount Prospect Academy/Pike (Subacute) Program","09505061-Becket: Mount Prospect Academy/Pike (Subacute) Program","No","09505061-Becket: Mount Prospect Academy/Pike (Subacute) Program"," ","09505061",null,0]
["09505062","Res Ed","Mount Prospect Academy","Mount Prospect Academy/Pike -Hall Farm",297894.75,816.15,365,null,null,"NH",null,"Becket: Mount Prospect Academy/Pike -Hall Program","09505062-Becket: Mount Prospect Academy/Pike -Hall Program","No","09505062-Becket: Mount Prospect Academy/Pike -Hall Program"," ","09505062",null,0]
["09505063","Res Ed","Mount Prospect Academy","Mount Prospect Academy/Plymouth- Summit ",314513.19999999995,861.68,365,null,null,"NH",null,"Becket: Mount Prospect Academy/Plymouth- Summit Program","09505063-Becket: Mount Prospect Academy/Plymouth- Summit Program","No","09505063-Becket: Mount Prospect Academy/Plymouth- Summit Program"," ","09505063",null,0]
["09505064","Res Ed","Bellefaire Jewish  Childrens Bureau","Monarch School",521765,1429.4931506849316,365,null,null,"OH",null,"Bellefaire Jewish Childrens Bureau: Monarch School","09505064-Bellefaire Jewish Childrens Bureau: Monarch School","No","09505064-Bellefaire Jewish Childrens Bureau: Monarch School"," ","09505064",null,0]
["09505065","Res Ed","Easter Seals of New Hampshire","Easterseals Gammon Academy at Krol House  - Int",471023.16,1290.4744109589039,365,null,null,"NH",null,"Easterseals Gammon Academy at Krol House - Intensive","09505065-Easterseals Gammon Academy at Krol House - Intensive","No","09505065-Easterseals Gammon Academy at Krol House - Intensive"," ","09505065",null,0]
["09505066","Res Ed","Easter Seals of New Hampshire","Easterseals Gammon Academy at Mammoth Road - Int",518465.86,1420.454410958904,365,null,null,"NH",null,"Easterseals Gammon Academy at Mammoth Road - Intensive","09505066-Easterseals Gammon Academy at Mammoth Road - Intensive","No","09505066-Easterseals Gammon Academy at Mammoth Road - Intensive"," ","09505066",null,0]
["09505067","Res Ed","Easter Seals of New Hampshire","Easterseals Gammon Academy at Mammoth Road - Regular",357164.54,978.53298630136976,365,null,null,"NH",null,"Easterseals Gammon Academy at Mammoth Road - Regular","09505067-Easterseals Gammon Academy at Mammoth Road - Regular","No","09505067-Easterseals Gammon Academy at Mammoth Road - Regular"," ","09505067",null,0]
["09505068","Res Ed","Greenwood School","Greenwood School Boarding Program",99500,487.74509803921569,204,null,null,"VT",null,"Greenwood School: Greenwood School Boarding Program","09505068-Greenwood School: Greenwood School Boarding Program","No","09505068-Greenwood School: Greenwood School Boarding Program"," ","09505068",null,0]
["09505069","Day","Lifespan School Solutions/Bradley Schools","Bradley School Clinical Intensive Program (used for both Bradley School Providence & Bradley School Portsmouth) Rate",89870,418,215,null,null,"RI",null,"Bradley School Providence & Bradley School Portsmouth","09505069-Bradley School Providence & Bradley School Portsmouth","No","09505069-Bradley School Providence & Bradley School Portsmouth"," ","09505069",null,0]
["09505070","Day","Lifespan School Solutions/Bradley Schools","Bradley School North, Intensive Rate",80840,376,215,null,null,"RI",null,"Lifespan School Solutions/Bradley Schools: Bradley School North, Intensive Rate","09505070-Lifespan School Solutions/Bradley Schools: Bradley School North, Intensive Rate","No","09505070-Lifespan School Solutions/Bradley Schools: Bradley School North, Intensive Rate"," ","09505070",null,0]
["09505071","Day","Lifespan School Solutions/Bradley Schools","Bradley School North, Standard Rate",66435,309,215,null,null,"RI",null,"Lifespan School Solutions/Bradley Schools: Bradley School North, Standard Rate","09505071-Lifespan School Solutions/Bradley Schools: Bradley School North, Standard Rate","No","09505071-Lifespan School Solutions/Bradley Schools: Bradley School North, Standard Rate"," ","09505071",null,0]
["09505074","Res Ed/Day"," The home for little Wanderers","Wediko School at The home for little Wanderers",327809.23,898.10747945205469,365,null,null,"NH",null,"The Home for Little Wanderers: Wediko School at the Home for Little Wanderers","09505074-The Home for Little Wanderers: Wediko School at the Home for Little Wanderers","No","09505074-The Home for Little Wanderers: Wediko School at the Home for Little Wanderers"," ","09505074",null,0]
["09505077","Summer","Wolf School","Summer ",6900,345,20,null,null,"RI",null,"Wolf School: Summer","09505077-Wolf School: Summer","Yes","09505077-Wolf School: Summer"," ","09505077",null,0]
["09505078","Day","Pathways","Pathways Strategic Teaching Center",null,531.67999999999995,null,null,null,"RI",null,"Pathways: Pathways Strategic Teaching Center","09505078-Pathways: Pathways Strategic Teaching Center","No","09505078-Pathways: Pathways Strategic Teaching Center"," ","09505078",null,0]
["09505078","Day","Pathways","Pathways Strategic Teaching Center",123933.98,560.78723981900453,221,null,null,"RI",null,"Pathways: Pathways Strategic Teaching Center","09505078-Pathways: Pathways Strategic Teaching Center","No","09505078-Pathways: Pathways Strategic Teaching Center"," ","09505078",null,0]
[50070103,"Res Ed","Boston Higashi School","Residential Ed. 365",308460.40999999997,845.1,365,null,null,"MA",null,"Boston Higashi School: Boston Higashi School 365 Residential Program",{"$f":"CONCATENATE($A61,\"-\",$L61)","v":"50070103-Boston Higashi School: Boston Higashi School 365 Residential Program"},{"$f":"IF(B61<>\"Summer\", \"No\", \"Yes\")","v":"No"},{"$f":"CONCATENATE($A61,\"-\",$L61)","v":"50070103-Boston Higashi School: Boston Higashi School 365 Residential Program"}," ",{"$f":"TRIM(A61)","v":"50070103"},null,{"$f":"IF(G61=366,366*F61,0)","v":0}]
["50010101","Res Ed","Amego","Autistic",322704.36,884.12,365,null,null,"MA",null,"Amego School: Amego Residential Program","50010101-Amego School: Amego Residential Program","No","50010101-Amego School: Amego Residential Program"," ","50010101",null,0]
["50010102","Day","Amego","Amego School Day ",160975.07,679.22,237,null,null,"MA",null,"Amego School: Amego Day Program","50010102-Amego School: Amego Day Program","No","50010102-Amego School: Amego Day Program"," ","50010102",null,0]
["50040101","Day","Justice Resource Institute","Bay Cove",103894.09,472.24587760000003,220,null,null,"MA",null,"JRI Bay Cove School: JRI Bay Cove Academy Day Program","50040101-JRI Bay Cove School: JRI Bay Cove Academy Day Program","No","50040101-JRI Bay Cove School: JRI Bay Cove Academy Day Program"," ","50040101",null,0]
["50060101","Day","Boston College Campus School","Campus School",124165.67,627.1,198,null,null,"MA",null,"B C Campus School: BC Campus School Day Program","50060101-B C Campus School: BC Campus School Day Program","No","50060101-B C Campus School: BC Campus School Day Program"," ","50060101",null,0]
["50070101","Day","Boston Higashi School","Day Education",104927.92,483.54,217,null,null,"MA",null,"Boston Higashi School: Boston Higashi School Day Program","50070101-Boston Higashi School: Boston Higashi School Day Program","No","50070101-Boston Higashi School: Boston Higashi School Day Program"," ","50070101",null,0]
["50080101","Day","Brandon Residential Treatment Center","Intensive Day",107657.15,498.41,216,null,null,"MA",null,"Brandon School: Brandon Intensive Day Program","50080101-Brandon School: Brandon Intensive Day Program","No","50080101-Brandon School: Brandon Intensive Day Program"," ","50080101",null,0]
["50080102","Res Ed","Brandon Residential Treatment Center","Intensive Res.",273801.13,750.14,365,null,null,"MA",null,"Brandon School: Brandon Intensive Residential Program","50080102-Brandon School: Brandon Intensive Residential Program","No","50080102-Brandon School: Brandon Intensive Residential Program"," ","50080102",null,0]
["50110101","Day","Broccoli Hall, Inc.","Corwin-Russell",69109.490000000005,383.94,180,null,null,"MA",null,"Corwin-Russell School @ Broccoli Hall: Corwin-Russell Day Program","50110101-Corwin-Russell School @ Broccoli Hall: Corwin-Russell Day Program","No","50110101-Corwin-Russell School @ Broccoli Hall: Corwin-Russell Day Program"," ","50110101",null,0]
["50120101","Day","Specialized Education Services, Inc.","High Road School of MA.",54344.67,301.91485811666666,180,null,null,"MA",null,"High Road School of Massachusetts: High Road Day Program","50120101-High Road School of Massachusetts: High Road Day Program","No","50120101-High Road School of Massachusetts: High Road Day Program",null,"50120101",null,0]
["50120102","Summer","Specialized Education Services, Inc.","High Road School of MA.",7985.59,332.73275262499999,24,null,null,"MA",null,"High Road School of Massachusetts: High Road Summer Program","50120102-High Road School of Massachusetts: High Road Summer Program","Yes","50120102-High Road School of Massachusetts: High Road Summer Program"," ","50120102",null,0]
["50130101","Day","Cardinal Cushing  Ctr.","Day/Vocational",126097.9,583.79,216,null,null,"MA",null,"Cardinal Cushing Centers School - Hanover: Cardinal Cushing Centers Day Program","50130101-Cardinal Cushing Centers School - Hanover: Cardinal Cushing Centers Day Program","No","50130101-Cardinal Cushing Centers School - Hanover: Cardinal Cushing Centers Day Program"," ","50130101",null,0]
["50130102","Day","Cardinal Cushing  Ctr.","Braintree St. Coletta",118015.53,546.37,216,null,null,"MA",null,"Cardinal Cushing Centers School - Braintree: Cardinal Cushing Centers Braintree St. Coletta Day Program","50130102-Cardinal Cushing Centers School - Braintree: Cardinal Cushing Centers Braintree St. Coletta Day Program","No","50130102-Cardinal Cushing Centers School - Braintree: Cardinal Cushing Centers Braintree St. Coletta Day Program"," ","50130102",null,0]
["50130103","Res Ed","Cardinal Cushing  Ctr.","Residential",329280.58,902.14,365,null,null,"MA",null,"Cardinal Cushing Centers School - Hanover: Cardinal Cushing Centers Residential Program","50130103-Cardinal Cushing Centers School - Hanover: Cardinal Cushing Centers Residential Program","No","50130103-Cardinal Cushing Centers School - Hanover: Cardinal Cushing Centers Residential Program"," ","50130103",null,0]
["50180101","Day","Meeting Street School ","Schwartz Center Day",95553.87,432.37046458371043,221,null,null,"MA",null,"Schwartz Center School: Schwartz Center Day Program","50180101-Schwartz Center School: Schwartz Center Day Program","No","50180101-Schwartz Center School: Schwartz Center Day Program"," ","50180101",null,0]
["50190201","Day","Helix Human Services, Inc","Mill Pond Day Program",67842.289999999994,314.08,216,null,null,"MA",null,"Mill Pond School: Mill Pond Day Program","50190201-Mill Pond School: Mill Pond Day Program","No","50190201-Mill Pond School: Mill Pond Day Program"," ","50190201",null,0]
["50200101","Day","Clarke School for the Deaf","Clarke School East",74497.820000000007,388.01,192,null,null,"MA",null,"Clarke School East: Clarke School East Day Program","50200101-Clarke School East: Clarke School East Day Program","No","50200101-Clarke School East: Clarke School East Day Program"," ","50200101",null,0]
["50210101","Day","Clearway School, Inc.","766 School",74919.62,416.22,180,null,null,"MA",null,"Clearway School: Clearway Day Program","50210101-Clearway School: Clearway Day Program","No","50210101-Clearway School: Clearway Day Program"," ","50210101",null,0]
["50210102","Summer","Clearway School, Inc.","Summer",7671.28,319.64,24,null,null,"MA",null,"Clearway School: Clearway Summer Program","50210102-Clearway School: Clearway Summer Program","Yes","50210102-Clearway School: Clearway Summer Program"," ","50210102",null,0]
["50240001","Summer","COMPASS, Inc.","Summer",10238.290000000001,426.6,24,null,null,"MA",null,"Compass School: Compass Summer Program","50240001-Compass School: Compass Summer Program","Yes","50240001-Compass School: Compass Summer Program"," ","50240001",null,0]
["50240101","Day","COMPASS, Inc.","766 Day School",97212.34,540.07000000000005,180,null,null,"MA",null,"Compass School: Compass Day Treatment & Education Program","50240101-Compass School: Compass Day Treatment & Education Program","No","50240101-Compass School: Compass Day Treatment & Education Program"," ","50240101",null,0]
["50240102","Day","COMPASS, Inc.","Short Term Crisis",40642.11,225.79,180,null,null,"MA",null,"Compass School: Compass Short Term Crisis Day Program","50240102-Compass School: Compass Short Term Crisis Day Program","No","50240102-Compass School: Compass Short Term Crisis Day Program"," ","50240102",null,0]
["50250101","Day","Community Therapeutic Day School","Day School",106005.26,588.91999999999996,180,null,null,"MA",null,"Community Therapeutic School: Community Therapeutic Day Program","50250101-Community Therapeutic School: Community Therapeutic Day Program","No","50250101-Community Therapeutic School: Community Therapeutic Day Program"," ","50250101",null,0]
["50250102","Summer","Community Therapeutic Day School","Summer",9431.7800000000007,471.59,20,null,null,"MA",null,"Community Therapeutic School: Community Therapaeutic Summer Program","50250102-Community Therapeutic School: Community Therapaeutic Summer Program","Yes","50250102-Community Therapeutic School: Community Therapaeutic Summer Program"," ","50250102",null,0]
["50260101","Day","Cotting School, Inc.","Cotting Day",119501.6,663.9,180,null,null,"MA",null,"Cotting School: Cotting Day Program","50260101-Cotting School: Cotting Day Program","No","50260101-Cotting School: Cotting Day Program"," ","50260101",null,0]
["50260102","Summer","Cotting School, Inc.","Cotting Summer",10323.06,412.92,25,null,null,"MA",null,"Cotting School: Cotting Summer Day Program","50260102-Cotting School: Cotting Summer Day Program","Yes","50260102-Cotting School: Cotting Summer Day Program"," ","50260102",null,0]
["50270101","Day","Crossroads School  Children, Inc.","Crossroads School",163270.12,722.43,226,null,null,"MA",null,"Crossroads School: Crossroads Day Program","50270101-Crossroads School: Crossroads Day Program","No","50270101-Crossroads School: Crossroads Day Program"," ","50270101",null,0]
["50280101","Day","Cutchins Programs for Children & Fam.","New Directions",101953.47,467.68,218,null,null,"MA",null,"New Directions School: New Directions Day Program","50280101-New Directions School: New Directions Day Program","No","50280101-New Directions School: New Directions Day Program"," ","50280101",null,0]
["50290101","Day","Devereux Foundation of Mass., Inc.","Day Program",100719.40666199999,466.2935493611111,216,null,null,"MA",null,"Devereux Advanced Behavioral Health School: Devereux Day Program","50290101-Devereux Advanced Behavioral Health School: Devereux Day Program","No","50290101-Devereux Advanced Behavioral Health School: Devereux Day Program"," ","50290101",null,0]
["50290103","Res Ed","Devereux Foundation of Mass., Inc.","West Meadow or ATC",280401.16295799997,768.22236426849304,365,null,null,"MA",null,"Devereux Advanced Behavioral Health School: Devereux Residential Program","50290103-Devereux Advanced Behavioral Health School: Devereux Residential Program","No","50290103-Devereux Advanced Behavioral Health School: Devereux Residential Program"," ","50290103",null,0]
["50300101","Day ","RFK Community Alliance","Doctor Franklin Perkins School Day Program ",99890.03,458.21112811009169,218,null,null,"MA",null,"Doctor Franklin Perkins School: Dr. Franklin Perkins Day Program","50300101-Doctor Franklin Perkins School: Dr. Franklin Perkins Day Program","No","50300101-Doctor Franklin Perkins School: Dr. Franklin Perkins Day Program"," ","50300101",null,0]
["50300102","Res Ed","RFK Community Alliance","Doctor Franklin Perkins School Intensive Residential Program",294235.01,806.12332099178082,365,null,null,"MA",null,"Doctor Franklin Perkins School: Dr. Franklin Perkins Residential Program","50300102-Doctor Franklin Perkins School: Dr. Franklin Perkins Residential Program","No","50300102-Doctor Franklin Perkins School: Dr. Franklin Perkins Residential Program"," ","50300102",null,0]
["50330101","Res Ed","Evergreen Center, Inc.","Multi H.",320663.90590499999,878.53124905479444,365,null,null,"MA",null,"Evergreen Center School: Evergreen Center for Basic Skills Residential Program",{"$f":"CONCATENATE($A93,\"-\",$L93)","v":"50330101-Evergreen Center School: Evergreen Center for Basic Skills Residential Program"},{"$f":"IF(B93<>\"Summer\", \"No\", \"Yes\")","v":"No"},{"$f":"CONCATENATE($A93,\"-\",$L93)","v":"50330101-Evergreen Center School: Evergreen Center for Basic Skills Residential Program"}," ",{"$f":"TRIM(A93)","v":"50330101"},null,{"$f":"IF(G93=366,366*F93,0)","v":0}]
["50330102","Res Ed","Evergreen Center, Inc.","BDU",347280.62895400001,951.45377795616423,365,null,null,"MA",null,"Evergreen Center School: Evergreen Center for Behavior Development Residential Program","50330102-Evergreen Center School: Evergreen Center for Behavior Development Residential Program","No","50330102-Evergreen Center School: Evergreen Center for Behavior Development Residential Program"," ","50330102",null,0]
["50340001","Day","F. L. Chamberlain School, Inc.","Day",135730.38,628.38,216,null,null,"MA",null,"F. L. Chamberlain School: F.L. Chamberlain Day Program","50340001-F. L. Chamberlain School: F.L. Chamberlain Day Program","No","50340001-F. L. Chamberlain School: F.L. Chamberlain Day Program"," ","50340001",null,0]
["50340101","Res Ed","F. L. Chamberlain School, Inc.","365 Day Residential",228493.62,626.01,365,null,null,"MA",null,"F. L. Chamberlain School: Chamberlain International Residential Program","50340101-F. L. Chamberlain School: Chamberlain International Residential Program","No","50340101-F. L. Chamberlain School: Chamberlain International Residential Program"," ","50340101",null,0]
["50350101","Res Ed","Fall River Deaconess, Inc.","Residential Program",262362.87,718.8,365,null,null,"MA",null,"Fall River Deaconess Home School: Fall River Deaconess Home Residential Program","50350101-Fall River Deaconess Home School: Fall River Deaconess Home Residential Program","No","50350101-Fall River Deaconess Home School: Fall River Deaconess Home Residential Program"," ","50350101",null,0]
["50350102","Day","Fall River Deaconess, Inc.","Day Program",92310.22,427.36,216,null,null,"MA",null,"Fall River Deaconess Home School: Fall River Deaconess Home Day Program","50350102-Fall River Deaconess Home School: Fall River Deaconess Home Day Program","No","50350102-Fall River Deaconess Home School: Fall River Deaconess Home Day Program"," ","50350102",null,0]
["50360101","Day","James Farr Academy","Farr Academy",120863.65,671.46471536666661,180,null,null,"MA",null,"Farr Academy School: Farr Academy Day Program","50360101-Farr Academy School: Farr Academy Day Program","No","50360101-Farr Academy School: Farr Academy Day Program"," ","50360101",null,0]
["50360102","Summer","James Farr Academy","Farr Academy Summer",11069.35,442.77415531999998,25,null,null,"MA",null,"Farr Academy School: Farr Academy Summer Program","50360102-Farr Academy School: Farr Academy Summer Program","Yes","50360102-Farr Academy School: Farr Academy Summer Program"," ","50360102",null,0]
["50370101","Day","Franciscan Children's Hospital","Kennedy Day",133788.26999999999,668.94,200,null,null,"MA",null,"Kennedy Day School: Kennedy Day Program","50370101-Kennedy Day School: Kennedy Day Program","No","50370101-Kennedy Day School: Kennedy Day Program"," ","50370101",null,0]
["50390101","Day","Margaret Gifford School","Gifford School",85492.979082000005,474.9609949,180,null,null,"MA",null,"Gifford School: Gifford Day Program","50390101-Gifford School: Gifford Day Program","No","50390101-Gifford School: Gifford Day Program"," ","50390101",null,0]
["50390102","Summer","Margaret Gifford School","Gifford Summer",7896.9793140000002,394.84896570000001,20,null,null,"MA",null,"Gifford School: Gifford Summer Program","50390102-Gifford School: Gifford Summer Program","Yes","50390102-Gifford School: Gifford Summer Program"," ","50390102",null,0]
["50410301","Day","Beth Israel Lahey Health","Solstice Day Program",101740.72,471.02,216,null,null,"MA",null,"Solstice School: Solstice Day Program","50410301-Solstice School: Solstice Day Program","No","50410301-Solstice School: Solstice Day Program"," ","50410301",null,0]
["50420001","Day","Hillcrest Educational Centers, Inc.","Housatonic Academy",77428.67,358.46606481481479,216,null,null,"MA",null,"Hillcrest Educational Centers School: Hillcrest Academy Program","50420001-Hillcrest Educational Centers School: Hillcrest Academy Program","No","50420001-Hillcrest Educational Centers School: Hillcrest Academy Program"," ","50420001",null,0]
["50420101","Res Ed","Hillcrest Educational Centers, Inc.","Autism Spectrum Disorders",484116.55,1326.35,365,null,null,"MA",null,"Hillcrest Educational Centers School: Brookside Residential Program","50420101-Hillcrest Educational Centers School: Brookside Residential Program","No","50420101-Hillcrest Educational Centers School: Brookside Residential Program"," ","50420101",null,0]
["50420102","Res Ed","Hillcrest Educational Centers, Inc.","Intensive Tx Unit",456591.02500000002,1250.93,365,null,null,"MA",null,"Hillcrest Educational Centers School: Highpoint Residential Program","50420102-Hillcrest Educational Centers School: Highpoint Residential Program","No","50420102-Hillcrest Educational Centers School: Highpoint Residential Program"," ","50420102",null,0]
["50420103","Res Ed","Hillcrest Educational Centers, Inc.","Hillcrest Centers",354304.01500000001,970.7,365,null,null,"MA",null,"Hillcrest Educational Centers School: Hillcrest Center Residential Program","50420103-Hillcrest Educational Centers School: Hillcrest Center Residential Program","No","50420103-Hillcrest Educational Centers School: Hillcrest Center Residential Program"," ","50420103",null,0]
["50420104","Day","Hillcrest Educational Centers, Inc.","Hillcrest Inten -Day program",156143.79500000001,722.89,216,null,null,"MA",null,"Hillcrest Educational Centers School: Hillcrest Academy Intensive Day Program","50420104-Hillcrest Educational Centers School: Hillcrest Academy Intensive Day Program","No","50420104-Hillcrest Educational Centers School: Hillcrest Academy Intensive Day Program"," ","50420104",null,0]
["50440101","Day","Home for Little Wanderers","Southeast Campus Day",125252.48,579.87257753703705,216,null,null,"MA",null,"The COVE School: The COVE School Day School","50440101-The COVE School: The COVE School Day School","No","50440101-The COVE School: The COVE School Day School"," ","50440101",null,0]
["50440102","Res Ed","Home for Little Wanderers","Southeast Campus Res.",316149.84000000003,866.16395770684937,365,null,null,"MA",null,"The COVE School: The COVE School Residential Program","50440102-The COVE School: The COVE School Residential Program","No","50440102-The COVE School: The COVE School Residential Program"," ","50440102",null,0]
["50440401","Res Ed","Home for Little Wanderers","Clifford Res",296731.065,812.96182023287668,365,null,null,"MA",null,"Clifford Academy: Clifford Academy Residential Program","50440401-Clifford Academy: Clifford Academy Residential Program","No","50440401-Clifford Academy: Clifford Academy Residential Program"," ","50440401",null,0]
["50440402","Day","Home for Little Wanderers","Clifford Day",109933.455,610.7413951333333,180,null,null,"MA",null,"Clifford Academy: Clifford Academy Day Program","50440402-Clifford Academy: Clifford Academy Day Program","No","50440402-Clifford Academy: Clifford Academy Day Program"," ","50440402",null,0]
["50440403","Summer","Home for Little Wanderers","Clifford Academy 36 Day",14658.91,407.19185830555551,36,null,null,"MA",null,"Clifford Academy: Clifford Academy Summer Program","50440403-Clifford Academy: Clifford Academy Summer Program","Yes","50440403-Clifford Academy: Clifford Academy Summer Program"," ","50440403",null,0]
["50450101","Res Ed","Crystal Springs, Inc.","Main Program",448987.56493499997,1230.102917630137,365,null,null,"MA",null,"Crystal Springs School: Crystal Springs Residential Program","50450101-Crystal Springs School: Crystal Springs Residential Program","No","50450101-Crystal Springs School: Crystal Springs Residential Program"," ","50450101",null,0]
["50460101","Day","Italian Home for Children, Inc.","Italian Home Day",113680.37,516.72895454545449,220,null,null,"MA",null,"Italian Home For Children: Italian Home for Children Day Program","50460101-Italian Home For Children: Italian Home for Children Day Program","No","50460101-Italian Home For Children: Italian Home for Children Day Program"," ","50460101",null,0]
["50470101","Day","Judge Baker Children's Center, Inc.","Manville",142766.69,793.14829937777779,180,null,null,"MA",null,"Manville School: Manville School Day Program","50470101-Manville School: Manville School Day Program","No","50470101-Manville School: Manville School Day Program"," ","50470101",null,0]
["50470102","Summer","Judge Baker Children's Center, Inc.","Manville-Summer",12339.71,616.98,20,null,null,"MA",null,"Manville School: Manville School Summer Program","50470102-Manville School: Manville School Summer Program","Yes","50470102-Manville School: Manville School Summer Program"," ","50470102",null,0]
["50480101","Res Ed","Judge Rotenberg Educational Center","Judge Rotenberg",360557.49,987.82874068219166,365,null,null,"MA",null,"Judge Rotenberg School: Judge Rotenberg Residential Program","50480101-Judge Rotenberg School: Judge Rotenberg Residential Program","No","50480101-Judge Rotenberg School: Judge Rotenberg Residential Program"," ","50480101",null,0]
["50490101","Res Ed","Justice Resource Institute","Berkshire Meadows",307691.28000000003,842.98982153150689,365,null,null,"MA",null,"JRI Berkshire Meadows: JRI Berkshire Meadows Program","50490101-JRI Berkshire Meadows: JRI Berkshire Meadows Program","No","50490101-JRI Berkshire Meadows: JRI Berkshire Meadows Program"," ","50490101",null,0]
["50490102","Res Ed","Justice Resource Institute","Littleton Academy",350323.71,959.7909761616437,365,null,null,"MA",null,"JRI Littleton Academy Residential Program: JRI Meadowridge Littleton Academy Campus","50490102-JRI Littleton Academy Residential Program: JRI Meadowridge Littleton Academy Campus","No","50490102-JRI Littleton Academy Residential Program: JRI Meadowridge Littleton Academy Campus"," ","50490102",null,0]
["50490501","Day","Justice Resource Institute","Victor School",76521.3,354.26,216,null,null,"MA",null,"JRI The Victor School: JRI The Victor School Program","50490501-JRI The Victor School: JRI The Victor School Program","No","50490501-JRI The Victor School: JRI The Victor School Program"," ","50490501",null,0]
["50490601","Res Ed","Justice Resource Institute","Meadowridge",276959.88,758.79418842739722,365,null,null,"MA",null,"JRI Meadowridge Academy School: JRI Meadowridge Academy","50490601-JRI Meadowridge Academy School: JRI Meadowridge Academy","No","50490601-JRI Meadowridge Academy School: JRI Meadowridge Academy"," ","50490601",null,0]
["50490701","Day","Justice Resource Institute","Anchor Academy",74081.78,374.1504229343434,198,null,null,"MA",null,"JRI Anchor Academy School - Middleborough: JRI Anchor Academy Day Program - Middleborough","50490701-JRI Anchor Academy School - Middleborough: JRI Anchor Academy Day Program - Middleborough","No","50490701-JRI Anchor Academy School - Middleborough: JRI Anchor Academy Day Program - Middleborough"," ","50490701",null,0]
["50530101","Day","Landmark Foundation","Landmark Day",74723.33,415.1296111111111,180,null,null,"MA",null,"Landmark School: Landmark Day Program",{"$f":"CONCATENATE($A125,\"-\",$L125)","v":"50530101-Landmark School: Landmark Day Program"},{"$f":"IF(B125<>\"Summer\", \"No\", \"Yes\")","v":"No"},{"$f":"CONCATENATE($A125,\"-\",$L125)","v":"50530101-Landmark School: Landmark Day Program"}," ",{"$f":"TRIM(A125)","v":"50530101"},null,{"$f":"IF(G125=366,366*F125,0)","v":0}]
["50530102","Res Ed","Landmark Foundation","Landmark Residential",99345.78,413.9407897041666,240,null,null,"MA",null,"Landmark School: Landmark Residential Program","50530102-Landmark School: Landmark Residential Program","No","50530102-Landmark School: Landmark Residential Program"," ","50530102",null,0]
["50540101","Res Ed","Latham Centers, Inc.","Intensive",325149.03000000003,890.81926835616423,365,null,null,"MA",null,"Latham School: Latham Intensive Residential Program","50540101-Latham School: Latham Intensive Residential Program","No","50540101-Latham School: Latham Intensive Residential Program"," ","50540101",null,0]
["50550101","Day","League School of Autisum, Inc.","Day Ed",136592.41,632.37226542129622,216,null,null,"MA",null,"League School: League School Day Program","50550101-League School: League School Day Program","No","50550101-League School: League School Day Program"," ","50550101",null,0]
["50550102","Res Ed","League School of Autisum, Inc.","Fine House",291628.3,798.98165090684927,365,null,null,"MA",null,"League School: League School Residential Program","50550102-League School: League School Residential Program","No","50550102-League School: League School Residential Program"," ","50550102",null,0]
["50560105","Day","Learning Ctr. for the Deaf","Day",104891.18,529.75343820707064,198,null,null,"MA",null,"The Learning Center for the Deaf School: TLCD Marie Philip Day Program","50560105-The Learning Center for the Deaf School: TLCD Marie Philip Day Program","No","50560105-The Learning Center for the Deaf School: TLCD Marie Philip Day Program"," ","50560105",null,0]
["50560202","Day","Learning Ctr. for the Deaf","Intensive Day",116235.5,587.04797267171716,198,null,null,"MA",null,"The Learning Center for the Deaf School: TLCD Marie Philip Intensive Day Program","50560202-The Learning Center for the Deaf School: TLCD Marie Philip Intensive Day Program","No","50560202-The Learning Center for the Deaf School: TLCD Marie Philip Intensive Day Program"," ","50560202",null,0]
["50560203","Res Ed","Learning Ctr. for the Deaf","Residential",150770,761.46463209090905,198,null,null,"MA",null,"The Learning Center for the Deaf School: TLCD Marie Philip Residential Program","50560203-The Learning Center for the Deaf School: TLCD Marie Philip Residential Program","No","50560203-The Learning Center for the Deaf School: TLCD Marie Philip Residential Program"," ","50560203",null,0]
["50560204","Res Ed","Learning Ctr. for the Deaf","Walden",522189.46,1430.656054569863,365,null,null,"MA",null,"The Learning Center for the Deaf School: TLCD Marie Philip Walden School Residential Program","50560204-The Learning Center for the Deaf School: TLCD Marie Philip Walden School Residential Program","No","50560204-The Learning Center for the Deaf School: TLCD Marie Philip Walden School Residential Program"," ","50560204",null,0]
["50560205","Day ","Learning Ctr. for the Deaf","Walden",194465.99,900.30550860185178,216,null,null,"MA",null,"The Learning Center for the Deaf School: TLCD Marie Phillip Walden School Day Program","50560205-The Learning Center for the Deaf School: TLCD Marie Phillip Walden School Day Program","No","50560205-The Learning Center for the Deaf School: TLCD Marie Phillip Walden School Day Program"," ","50560205",null,0]
["50570101","Day","Lighthouse School","Comp. Services Prog.",136630.34,759.05745657777766,180,null,null,"MA",null,"Lighthouse School: Lighthouse Comprehensive Day School","50570101-Lighthouse School: Lighthouse Comprehensive Day School","No","50570101-Lighthouse School: Lighthouse Comprehensive Day School"," ","50570101",null,0]
["50580101","Day","Little People's School","Learning Prep School",88087.47,489.37481094444445,180,null,null,"MA",null,"Learning Prep School: Learning Prep School Day Program","50580101-Learning Prep School: Learning Prep School Day Program","No","50580101-Learning Prep School: Learning Prep School Day Program"," ","50580101",null,0]
["50590101","Res Ed","MAB Community Services","IVY Street School",327126.64186999993,896.23737498630123,365,null,null,"MA",null,"Ivy Street School: Ivy Street Residential Program","50590101-Ivy Street School: Ivy Street Residential Program","No","50590101-Ivy Street School: Ivy Street Residential Program"," ","50590101",null,0]
["50590102","Day","MAB Community Services","IVY Street School Day Program",151018.431942,626.63249768464732,241,null,null,"MA",null,"Ivy Street School: Ivy Street Day Program","50590102-Ivy Street School: Ivy Street Day Program","No","50590102-Ivy Street School: Ivy Street Day Program"," ","50590102",null,0]
["50600101","Day","Mass. Found. for Learning Disabilities","White Oak School",63673.948127999996,353.74415626666666,180,null,null,"MA",null,"White Oak School: White Oak Day Program","50600101-White Oak School: White Oak Day Program","No","50600101-White Oak School: White Oak Day Program"," ","50600101",null,0]
["50610101","Day","Justice Resource Institute"," Granite Day Ed",88446.71,437.85501792574257,202,null,null,"MA",null,"JRI Granite Academy School: JRI Granite Academy Day Program","50610101-JRI Granite Academy School: JRI Granite Academy Day Program","No","50610101-JRI Granite Academy School: JRI Granite Academy Day Program"," ","50610101",null,0]
["50620101","Res Ed","May Institute","Randolph Res.",329934.90000000002,903.9312227342466,365,null,null,"MA",null,"May Center School for Autism and Developmental Disabilities (Randolph): The May Center School for Autism and Developmental Disabilities - Randolph Residential","50620101-May Center School for Autism and Developmental Disabilities (Randolph): The May Center School for Autism and Developmental Disabilities - Randolph Residential","No","50620101-May Center School for Autism and Developmental Disabilities (Randolph): The May Center School for Autism and Developmental Disabilities - Randolph Residential"," ","50620101",null,0]
["50620301","Day","May Institute","Norwood Rehabilitative ",159369.04,678.16612797872335,235,null,null,"MA",null,"The May Center School for Brain Injury and Neurobehavioral Disorders â€“ Norwood: The May Center School for Brain Injury and Neurobehavioral Disorders - Norwood Day Program","50620301-The May Center School for Brain Injury and Neurobehavioral Disorders â€“ Norwood: The May Center School for Brain Injury and Neurobehavioral Disorders - Norwood Day Program","No","50620301-The May Center School for Brain Injury and Neurobehavioral Disorders â€“ Norwood: The May Center School for Brain Injury and Neurobehavioral Disorders - Norwood Day Program"," ","50620301",null,0]
["50620302","Res Ed","May Institute","Norwood Rehabilitative ",345856.07,947.55087228219168,365,null,null,"MA",null,"The May Center School for Brain Injury and Neurobehavioral Disorders â€“ Norwood: The May Center School for Brain Injury and Neurobehavioral Disorders - Norwood Residential Program","50620302-The May Center School for Brain Injury and Neurobehavioral Disorders â€“ Norwood: The May Center School for Brain Injury and Neurobehavioral Disorders - Norwood Residential Program","No","50620302-The May Center School for Brain Injury and Neurobehavioral Disorders â€“ Norwood: The May Center School for Brain Injury and Neurobehavioral Disorders - Norwood Residential Program",null,"50620302",null,0]
["50620401","Day","May Institute","West Springfield",161927.67000000001,729.40390770270255,222,null,null,"MA",null,"The May Center School for Autism and Developmental Disabilities - Chicopee and West Springfield: The May Center School for Autism and Developmental Disabilities - Chicopee and West Springfield","50620401-The May Center School for Autism and Developmental Disabilities - Chicopee and West Springfield: The May Center School for Autism and Developmental Disabilities - Chicopee and West Springfield","No","50620401-The May Center School for Autism and Developmental Disabilities - Chicopee and West Springfield: The May Center School for Autism and Developmental Disabilities - Chicopee and West Springfield"," ","50620401",null,0]
["50620402","Day","May Institute","Randolph Day",158671.46,675.19768090212767,235,null,null,"MA",null,"May Center School for Autism and Developmental Disabilities (Randolph): May Center School for Autism and Developmental Disabilities - Randolph Day and Wilmington Day","50620402-May Center School for Autism and Developmental Disabilities (Randolph): May Center School for Autism and Developmental Disabilities - Randolph Day and Wilmington Day","No","50620402-May Center School for Autism and Developmental Disabilities (Randolph): May Center School for Autism and Developmental Disabilities - Randolph Day and Wilmington Day"," ","50620402",null,0]
["50630001","Day","McAuley Nazareth Inc.","Nazareth Day",77497.093788000013,358.78284161111117,216,null,null,"MA",null,"McAuley Nazareth School: McAuley Nazareth Day Program","50630001-McAuley Nazareth School: McAuley Nazareth Day Program","No","50630001-McAuley Nazareth School: McAuley Nazareth Day Program"," ","50630001",null,0]
["50630101","Res Ed","McAuley Nazareth Inc.","McAuley Nazareth",223373.60530800003,611.98248029589047,365,null,null,"MA",null,"McAuley Nazareth School: McAuley Nazareth Residential Program","50630101-McAuley Nazareth School: McAuley Nazareth Residential Program","No","50630101-McAuley Nazareth School: McAuley Nazareth Residential Program"," ","50630101",null,0]
["50640101","Day","Mass General Brigham Inc.  and Affiliates\" AKA McLean","Arlington-Academy",97108.98,490.44941856060603,198,null,null,"MA",null,"Arlington School: Arlington Day Program","50640101-Arlington School: Arlington Day Program","No","50640101-Arlington School: Arlington Day Program"," ","50640101",null,0]
["50640201","Day","Mass General Brigham Inc.  and Affiliates AKA McLean","CNS",141053.51,653.02548921296307,216,null,null,"MA",null,"CNS/Pathways Academy: Center for Neuronintegrative Services (CNS Pathways Academy) Program","50640201-CNS/Pathways Academy: Center for Neuronintegrative Services (CNS Pathways Academy) Program","No","50640201-CNS/Pathways Academy: Center for Neuronintegrative Services (CNS Pathways Academy) Program"," ","50640201",null,0]
["50650101","Day","Melmark Home, Inc.","Melmark Day",155772.07,657.26613778059073,237,null,null,"MA",null,"Melmark New England School: Melmark Day Program","50650101-Melmark New England School: Melmark Day Program","No","50650101-Melmark New England School: Melmark Day Program"," ","50650101",null,0]
["50650102","Res Ed","Melmark Home, Inc.","Melmark N.E.",367285.65,1006.262061958904,365,null,null,"MA",null,"Melmark New England School: Melmark Residential Program","50650102-Melmark New England School: Melmark Residential Program","No","50650102-Melmark New England School: Melmark Residential Program"," ","50650102",null,0]
["50670101","Day","Nashoba Learning Group, Inc.","Nashoba Learning ",148243.29999999999,661.80044678124989,224,null,null,"MA",null,"Nashoba Learning Group: Nashoba Day Program","50670101-Nashoba Learning Group: Nashoba Day Program","No","50670101-Nashoba Learning Group: Nashoba Day Program"," ","50670101",null,0]
["50680101","Day","N. E. Adolescent Research Institute","N.E.A.R.I.",109297.32,496.80600744090907,220,null,null,"MA",null,"N.E.A.R.I. School: NEARI Day Program","50680101-N.E.A.R.I. School: NEARI Day Program","No","50680101-N.E.A.R.I. School: NEARI Day Program"," ","50680101",null,0]
["50690102","Day","New England Center for Children","Intensive Instruction",162715.07999999999,719.97824171681418,226,null,null,"MA",null,"New England Center for Children School: NECC Intensive Instruction Day Program","50690102-New England Center for Children School: NECC Intensive Instruction Day Program","No","50690102-New England Center for Children School: NECC Intensive Instruction Day Program"," ","50690102",null,0]
["50690103","Res Ed","New England Center for Children","Intermediate",436679.39,1196.38187850137,365,null,null,"MA",null,"New England Center for Children School: NECC Intermediate Residential Program","50690103-New England Center for Children School: NECC Intermediate Residential Program","No","50690103-New England Center for Children School: NECC Intermediate Residential Program"," ","50690103",null,0]
["50690104","Res Ed","New England Center for Children","N.E.C.C. Residen",324405.45,888.78205344657533,365,null,null,"MA",null,"New England Center for Children School: NECC Residential Program","50690104-New England Center for Children School: NECC Residential Program","No","50690104-New England Center for Children School: NECC Residential Program"," ","50690104",null,0]
["50690105","Res Ed","New England Center for Children","N.E.C.C. Severe",472084.6,1293.382460769863,365,null,null,"MA",null,"New England Center for Children School: NECC Severe Residential Program",{"$f":"CONCATENATE($A157,\"-\",$L157)","v":"50690105-New England Center for Children School: NECC Severe Residential Program"},{"$f":"IF(B157<>\"Summer\", \"No\", \"Yes\")","v":"No"},{"$f":"CONCATENATE($A157,\"-\",$L157)","v":"50690105-New England Center for Children School: NECC Severe Residential Program"}," ",{"$f":"TRIM(A157)","v":"50690105"},null,{"$f":"IF(G157=366,366*F157,0)","v":0}]
["50700101","Day","New England Long Term Care","NELTC Day Progrram ",83625.67,333.17,251,null,null,"MA",null,"NE Pediatric School: N.E. Pediatric Day Program","50700101-NE Pediatric School: N.E. Pediatric Day Program","No","50700101-NE Pediatric School: N.E. Pediatric Day Program"," ","50700101",null,0]
["50760101","Day","Perkins School for the Blind","Day Program",177333.12,865.03962347804872,205,null,null,"MA",null,"Perkins School for Blind: Perkins Day Program","50760101-Perkins School for Blind: Perkins Day Program","No","50760101-Perkins School for Blind: Perkins Day Program"," ","50760101",null,0]
["50760102","Res Ed","Perkins School for the Blind","Residential Program",346431.74,1224.1404152862192,283,null,null,"MA",null,"Perkins School for Blind: Perkins Residential Program","50760102-Perkins School for Blind: Perkins Residential Program","No","50760102-Perkins School for Blind: Perkins Residential Program"," ","50760102",null,0]
["50760105","Day","Perkins School for the Blind","Intermediate Day Program",229869.95,1121.3168194097561,205,null,null,"MA",null,"Perkins School for Blind: Perkins Intermediate Day Program","50760105-Perkins School for Blind: Perkins Intermediate Day Program","No","50760105-Perkins School for Blind: Perkins Intermediate Day Program"," ","50760105",null,0]
["50760106","Res Ed","Perkins School for the Blind","Intermediate Res.",437137.15,1544.6542434805654,283,null,null,"MA",null,"Perkins School for Blind: Perkins Intermediate Residential Program","50760106-Perkins School for Blind: Perkins Intermediate Residential Program","No","50760106-Perkins School for Blind: Perkins Intermediate Residential Program"," ","50760106",null,0]
["50760107","Day","Perkins School for the Blind","Intensive Day Program",265135.96999999997,1293.3462105609756,205,null,null,"MA",null,"Perkins School for Blind: Perkins Intensive Day Program","50760107-Perkins School for Blind: Perkins Intensive Day Program","No","50760107-Perkins School for Blind: Perkins Intensive Day Program"," ","50760107",null,0]
["50760108","Res Ed","Perkins School for the Blind","Intensive Residential Program",509528.96,1800.4556824770316,283,null,null,"MA",null,"Perkins School for Blind: Perkins Intensive Residential Program","50760108-Perkins School for Blind: Perkins Intensive Residential Program","No","50760108-Perkins School for Blind: Perkins Intensive Residential Program"," ","50760108",null,0]
["50770101","Day","Partners in Child Development","Day Program",135778.79999999999,685.75149901010093,198,null,null,"MA",null,"Anderson School: Anderson School Day Program","50770101-Anderson School: Anderson School Day Program","No","50770101-Anderson School: Anderson School Day Program"," ","50770101",null,0]
["50780101","Day","Guild for Human Services","Learning Center Day",185462.14,792.57,234,null,null,"MA",null,"The Guild for Human Services School: The Guild for Human Services Day Program","50780101-The Guild for Human Services School: The Guild for Human Services Day Program","No","50780101-The Guild for Human Services School: The Guild for Human Services Day Program"," ","50780101",null,0]
["50780102","Res Ed","Guild for Human Services","Learning Center Res",405156.05,1110.02,365,null,null,"MA",null,"The Guild for Human Services School: The Guild for Human Services Residential Program","50780102-The Guild for Human Services School: The Guild for Human Services Residential Program","No","50780102-The Guild for Human Services School: The Guild for Human Services Residential Program"," ","50780102",null,0]
["50800001","Day","Camp Sunshine Day","Reed Academy Day",113792.91,526.82000000000005,216,null,null,"MA",null,"Reed Academy School: Reed Academy Day Program","50800001-Reed Academy School: Reed Academy Day Program","No","50800001-Reed Academy School: Reed Academy Day Program"," ","50800001",null,0]
["50810101","Res Ed","Riverview School","Riverview",113491.46,465.128923602459,244,null,null,"MA",null,"Riverview School: Riverview School Residential Program","50810101-Riverview School: Riverview School Residential Program","No","50810101-Riverview School: Riverview School Residential Program"," ","50810101",null,0]
["50810102","Day","Riverview School","Riverview Day",65831.06,365.72812029444441,180,null,null,"MA",null,"Riverview School: Riverview School Day Program","50810102-Riverview School: Riverview School Day Program","No","50810102-Riverview School: Riverview School Day Program"," ","50810102",null,0]
["50820101","Day","RFK Community Alliance","RFK Academy Day Program",91708.13,424.57467756018514,216,null,null,"MA",null,"RFK Academy School: RFK Academy Day Program","50820101-RFK Academy School: RFK Academy Day Program","No","50820101-RFK Academy School: RFK Academy Day Program"," ","50820101",null,0]
["50820202","Day","RFK Community Alliance","Don Watson Academy Day Program",94717.87,438.50864549074072,216,null,null,"MA",null,"RFK Don Watson Academy: RFK Don Watson Academy Day Program","50820202-RFK Don Watson Academy: RFK Don Watson Academy Day Program","No","50820202-RFK Don Watson Academy: RFK Don Watson Academy Day Program"," ","50820202",null,0]
["50830101","Day","Saint Ann's Home, Inc.","St. Ann's Day School",73137.05,406.31694110000001,180,null,null,"MA",null,"Saint Ann's Home School: Saint Ann's Home Day Program","50830101-Saint Ann's Home School: Saint Ann's Home Day Program","No","50830101-Saint Ann's Home School: Saint Ann's Home Day Program"," ","50830101",null,0]
["50830102","Res Ed","Saint Ann's Home, Inc.","St. Ann's Residential",261908.28,717.55693228493146,365,null,null,"MA",null,"Saint Ann's Home School: Saint Ann's Home Residential Program","50830102-Saint Ann's Home School: Saint Ann's Home Residential Program","No","50830102-Saint Ann's Home School: Saint Ann's Home Residential Program"," ","50830102",null,0]
["50830103","Summer","Saint Ann's Home, Inc.","Summer Day",12330.38,342.51041747222223,36,null,null,"MA",null,"Saint Ann's Home School: Saint Ann's Home Summer Program","50830103-Saint Ann's Home School: Saint Ann's Home Summer Program","Yes","50830103-Saint Ann's Home School: Saint Ann's Home Summer Program"," ","50830103",null,0]
["50850101","Day","Schools for Children","Dearborn Academy",115864.6,643.69221349999987,180,null,null,"MA",null,"Dearborn Academy School: Dearborn Academy Day Program","50850101-Dearborn Academy School: Dearborn Academy Day Program","No","50850101-Dearborn Academy School: Dearborn Academy Day Program"," ","50850101",null,0]
["50850102","Summer","Schools for Children","Dearborn Summer",9750.8799999999992,325.026184,30,null,null,"MA",null,"Dearborn Academy School: Dearborn Academy Summer Program","50850102-Dearborn Academy School: Dearborn Academy Summer Program","Yes","50850102-Dearborn Academy School: Dearborn Academy Summer Program"," ","50850102",null,0]
["50850201","Day","Schools for Children","Seaport Campus",102777.54,570.98631150555548,180,null,null,"MA",null,"Seaport Academy School: Seaport Campus Day Program","50850201-Seaport Academy School: Seaport Campus Day Program","No","50850201-Seaport Academy School: Seaport Campus Day Program"," ","50850201",null,0]
["50860101","Day","Seven Hills Foundation, Inc.","Groton - Clin Nursery",66775.88,266.03935829482066,251,null,null,"MA",null,"Seven Hills School: Seven Hills at Groton Day Program","50860101-Seven Hills School: Seven Hills at Groton Day Program","No","50860101-Seven Hills School: Seven Hills at Groton Day Program"," ","50860101",null,0]
["50860103","Res Ed","Seven Hills Foundation, Inc.","Stetson School",273656.38,749.74351339999998,365,null,null,"MA",null,"Seven Hills/Stetson School: Seven Hills/Stetson Residential Program","50860103-Seven Hills/Stetson School: Seven Hills/Stetson Residential Program","No","50860103-Seven Hills/Stetson School: Seven Hills/Stetson Residential Program"," ","50860103",null,0]
["50880101","Res Ed","Stevens Children's Home","Stevens Home  Day Program",286462.78999999998,784.82955979726034,365,null,null,"MA",null,"Stevens School: Stevens Residential Program","50880101-Stevens School: Stevens Residential Program","No","50880101-Stevens School: Stevens Residential Program"," ","50880101",null,0]
["50880102","Day","Stevens Children's Home","Stevens Home",106052.94,473.45061556249999,224,null,null,"MA",null,"Stevens School: Stevens Day Program","50880102-Stevens School: Stevens Day Program","No","50880102-Stevens School: Stevens Day Program"," ","50880102",null,0]
["50890101","Day","Milestones, Inc.","Milestones Day School",154665.53,716.04413043981481,216,null,null,"MA",null,"Milestones Day School: Milestones Day School Program","50890101-Milestones Day School: Milestones Day School Program","No","50890101-Milestones Day School: Milestones Day School Program"," ","50890101",null,0]
["50910101","Day","Valley West Day School","Valley West Day School",68750.636927,381.94798292777779,180,null,null,"MA",null,"Valley West School: Valley West Day Program","50910101-Valley West School: Valley West Day Program","No","50910101-Valley West School: Valley West Day Program"," ","50910101",null,0]
["50910102","Summer","Valley West Day School","Valley West Summer",8194.5225809999993,273.1507527,30,null,null,"MA",null,"Valley West School: Valley West Summer Program","50910102-Valley West School: Valley West Summer Program","Yes","50910102-Valley West School: Valley West Summer Program"," ","50910102",null,0]
["50930101","Day","Walker, Inc.","Beacon High School",78799.62,397.9778729040404,198,null,null,"MA",null,"Walker Beacon School: Walker Beacon Day Program","50930101-Walker Beacon School: Walker Beacon Day Program","No","50930101-Walker Beacon School: Walker Beacon Day Program"," ","50930101",null,0]
["50930201","Res Ed","Walker, Inc.","Intensive",338317.89,926.89833133972593,365,null,null,"MA",null,"Walker School: Walker School Intensive Residential Program","50930201-Walker School: Walker School Intensive Residential Program","No","50930201-Walker School: Walker School Intensive Residential Program"," ","50930201",null,0]
["50930202","Day","Walker, Inc.","Walker School",122166.97,565.58781144444447,216,null,null,"MA",null,"Walker School: Walker School Day Program","50930202-Walker School: Walker School Day Program","No","50930202-Walker School: Walker School Day Program"," ","50930202",null,0]
["50940101","Day","Wayside Youth and Family Support Ntwk.","Wayside Academy",89830.708121000003,408.32140055000002,220,null,null,"MA",null,"Wayside Academy School: Wayside Academy Day Program",{"$f":"CONCATENATE($A189,\"-\",$L189)","v":"50940101-Wayside Academy School: Wayside Academy Day Program"},{"$f":"IF(B189<>\"Summer\", \"No\", \"Yes\")","v":"No"},{"$f":"CONCATENATE($A189,\"-\",$L189)","v":"50940101-Wayside Academy School: Wayside Academy Day Program"}," ",{"$f":"TRIM(A189)","v":"50940101"},null,{"$f":"IF(G189=366,366*F189,0)","v":0}]
["50940102","Res Ed","Wayside Youth and Family Support Ntwk.","Residential Education",339365.43482099997,929.76831457808214,365,null,null,"MA",null,"Wayside Academy School: Wayside Academy Residential Program","50940102-Wayside Academy School: Wayside Academy Residential Program","No","50940102-Wayside Academy School: Wayside Academy Residential Program"," ","50940102",null,0]
["50950101","Res Ed","Whitney Academy, Inc.","Intensive",397321.86,1088.5530357397258,365,null,null,"MA",null,"Whitney Academy School: Whitney Academy Intensive Residential Program","50950101-Whitney Academy School: Whitney Academy Intensive Residential Program","No","50950101-Whitney Academy School: Whitney Academy Intensive Residential Program"," ","50950101",null,0]
["50960101","Day","Willie Ross School for the Deaf","Day",86223.33,479.01852351111114,180,null,null,"MA",null,"Willie Ross School for the Deaf: Willie Ross School for the Deaf Day Program","50960101-Willie Ross School for the Deaf: Willie Ross School for the Deaf Day Program","No","50960101-Willie Ross School for the Deaf: Willie Ross School for the Deaf Day Program"," ","50960101",null,0]
["50970101","Day","Willow Hill School","Willow Hill School",73670.710000000006,409.28173031666665,180,null,null,"MA",null,"Willow Hill School: Willow Hill Day Program","50970101-Willow Hill School: Willow Hill Day Program","No","50970101-Willow Hill School: Willow Hill Day Program"," ","50970101",null,0]
["50990002","Day","Realizing Children's Strengths","Intensive Day",171637.1,776.63845731674212,221,null,null,"MA",null,"RCS Learning Center School: RCS Intensive Day Program","50990002-RCS Learning Center School: RCS Intensive Day Program","No","50990002-RCS Learning Center School: RCS Intensive Day Program"," ","50990002",null,0]
["50990003","Day","Realizing Children's Strengths","Day Ed.",124381.62,562.81274953393665,221,null,null,"MA",null,"RCS Learning Center School: RCS Day Program","50990003-RCS Learning Center School: RCS Day Program","No","50990003-RCS Learning Center School: RCS Day Program"," ","50990003",null,0]
["51000100","Day","Summit Academy","Sch. for Alt. Learners",67476.429999999993,340.7900452373737,198,null,null,"MA",null,"Summit Academy School for Alternative Learners: Summit Academy - Day Program","51000100-Summit Academy School for Alternative Learners: Summit Academy - Day Program","No","51000100-Summit Academy School for Alternative Learners: Summit Academy - Day Program"," ","51000100",null,0]
["51011001","Day","Advocates","Darnell School",141629.04,640.85,221,null,null,"MA",null,"The Darnell School for Educational and Behavioral Service: The Darnell School for Educational and Behavioral Services Day Program","51011001-The Darnell School for Educational and Behavioral Service: The Darnell School for Educational and Behavioral Services Day Program","No","51011001-The Darnell School for Educational and Behavioral Service: The Darnell School for Educational and Behavioral Services Day Program"," ","51011001",null,0]
["51030100","Day","New England Academy","NE Academy",86621.43,437.48195470707077,198,null,null,"MA",null,"New England Academy School: New England Academy Day School Program","51030100-New England Academy School: New England Academy Day School Program","No","51030100-New England Academy School: New England Academy Day School Program"," ","51030100",null,0]
["51040101","Day","Hopeful Journeys Education Center, Inc.","Hopeful Journeys ",160486.62,742.99362689351847,216,null,null,"MA",null,"Hopeful Journeys Educational Center School: Hopeful Journeys Educational Center Day Program","51040101-Hopeful Journeys Educational Center School: Hopeful Journeys Educational Center Day Program","No","51040101-Hopeful Journeys Educational Center School: Hopeful Journeys Educational Center Day Program"," ","51040101",null,0]
["51050001","Day","Devereux Foundation of Mass., Inc.","CARES",119807.86,554.66999999999996,216,null,null,"MA",null,"Devereux Advanced Behavioral Health School: Devereux CARES (Center for Autism Resources and Education Services)","51050001-Devereux Advanced Behavioral Health School: Devereux CARES (Center for Autism Resources and Education Services)","No","51050001-Devereux Advanced Behavioral Health School: Devereux CARES (Center for Autism Resources and Education Services)"," ","51050001",null,0]
["51060101","Day","Center for School Crisis Inter. & Assess.","Center School",111684.7,507.66,220,null,null,"MA",null,"The Center School: The Center School Day Program","51060101-The Center School: The Center School Day Program","No","51060101-The Center School: The Center School Day Program"," ","51060101",null,0]
["51060102","Day","Center for School Crisis Inter. & Assess.","Curtis Blake Day School",93390.44,444.72,210,null,null,"MA",null,"Curtis Blake Day School: Curtis Blake Day School","51060102-Curtis Blake Day School: Curtis Blake Day School","No","51060102-Curtis Blake Day School: Curtis Blake Day School"," ","51060102",null,0]
["51070001","Day","Riverside Community Care","Riverside Life Skills",96672.51,427.75448425221236,226,null,null,"MA",null,"Riverside School: Riverside School Day Program","51070001-Riverside School: Riverside School Day Program","No","51070001-Riverside School: Riverside School Day Program"," ","51070001",null,0]
["51080001","Day","Springdale Education Center","Springdale Ed. Center",98636.83,448.34923575909085,220,null,null,"MA",null,"Springdale Education Center: Springdale Education Center Day Program","51080001-Springdale Education Center: Springdale Education Center Day Program","No","51080001-Springdale Education Center: Springdale Education Center Day Program"," ","51080001",null,0]
["51090101","Day","Beverly School for the Deaf","Child. Comm. Ctr.",129205.01,633.36,204,null,null,"MA",null,"Children's Center for Communication School: Children's Center for Communication Day Program","51090101-Children's Center for Communication School: Children's Center for Communication Day Program","No","51090101-Children's Center for Communication School: Children's Center for Communication Day Program"," ","51090101",null,0]
["51090102","Day","Beverly School for the Deaf","BSD",105624.42,517.77,204,null,null,"MA",null,"Children's Center for Communication School: Beverly School for the Deaf Day Program","51090102-Children's Center for Communication School: Beverly School for the Deaf Day Program","No","51090102-Children's Center for Communication School: Beverly School for the Deaf Day Program"," ","51090102",null,0]
["51140101","Day","Merrimac Heights Academy ","Merrimac Heights Academy Day Program",114973.91,638.74392921111109,180,null,null,"MA",null,"Merrimac Heights Academy: Merrimac Heights Academy Day Program","51140101-Merrimac Heights Academy: Merrimac Heights Academy Day Program","No","51140101-Merrimac Heights Academy: Merrimac Heights Academy Day Program"," ","51140101",null,0]
["51150101","Day","Center for Applied Behavioral Instruction","Day Program",124352.34,550.23,226,null,null,"MA",null,"Center for Applied Behavioral Instruction School: Center for Applied Behavioral Instruction Day Program","51150101-Center for Applied Behavioral Instruction School: Center for Applied Behavioral Instruction Day Program","No","51150101-Center for Applied Behavioral Instruction School: Center for Applied Behavioral Instruction Day Program"," ","51150101",null,0]
["51160101","Day","Branches School of the Berkshire","Branches School ",124129.45,556.63,223,null,null,"MA",null,"Branches School of the Berkshires: Branches Day Program","51160101-Branches School of the Berkshires: Branches Day Program","No","51160101-Branches School of the Berkshires: Branches Day Program"," ","51160101",null,0]
["51170101","Day","Your Educational Success "," YES Day Program ",118700.56,529.91322684062493,224,null,null,"MA",null,"Your Educational Success Academy: YES Day Program","51170101-Your Educational Success Academy: YES Day Program","No","51170101-Your Educational Success Academy: YES Day Program"," ","51170101",null,0]
["51180101","Day","South Shore Stars and Learning Center ","South Shore Stars  School",71124.354672000016,395.13530373333344,180,null,null,"MA",null,"South Shore Stars School: South Shore Stars School and Learning Center","51180101-South Shore Stars School: South Shore Stars School and Learning Center","No","51180101-South Shore Stars School: South Shore Stars School and Learning Center"," ","51180101",null,0]
["TBD1","Res Ed","Mount Prospect Academy","Mount Prospect Academy/ Plymouth Area",85549.2,388.86,220,null,null,"NH",null,null,"TBD1-","No","TBD1-"," ","TBD1",null,0]
["TBD2","Res Ed","Mount Prospect Academy","Mount Prospect Academy/Hampton Cast",341373.55,935.27,365,null,null,"NH",null,null,"TBD2-","No","TBD2-"," ","TBD2",null,0]
["TBD3","Day","Mount Prospect Academy","Mount Prospect Academy/Pike",85549.2,388.86,220,null,null,"NH",null,null,"TBD3-","No","TBD3-"," ","TBD3",null,0]
["TBD4","RES","The home for little Wanderers","Wediko School at The home for little Wanderers",238312.15,652.91,365,null,null,"NH",null,null,"TBD4-","No","TBD4-"," ","TBD4",null,0]